{"text_format":"1","workbook":"xlsx","n_sheets":4,"sheets":["Fiche contrat classe","Fiche contrat type","Referentiel Bac Pro TMA","Referentiel Bac Pro TFBMA"],"not_rendered":{"charts":0,"images":7,"macros":1,"external_links":0,"defined_names":147,"comments":0,"pivot_tables":0},"unopened":[],"bounds":{"document_bytes":16777216,"sheet_cells":100000,"rows_first":2000,"rows_last":500,"rows_between":2000,"halvings":0,"cell_chars":16384,"cell_head_chars":4096},"cells_cut":0,"cells_raw":0,"read":"whole","date_system":"1900"}

{"sheet":"Fiche contrat classe","index":0,"n_rows":1,"n_cols":2,"rows_kept":1,"cut":false,"hidden":false,"merged":[]}
[null,"Fiche contrat classe"]

{"sheet":"Fiche contrat type","index":1,"n_rows":63,"n_cols":16,"rows_kept":63,"cut":false,"hidden":false,"merged":[[10,0,10,5],[17,0,17,1],[18,0,18,1],[19,0,19,1],[12,2,12,8],[13,2,13,8],[15,0,16,1],[15,2,15,6],[15,7,15,11],[16,2,16,3],[16,4,16,5],[21,7,21,8],[21,0,21,1],[17,3,17,6],[18,3,18,6],[19,2,19,3],[19,4,19,5],[20,0,20,1]]}
[null,"Fiche contrat type"]
[]
[]
[]
[]
[null,null,null,null,null,null,null,null,null,null,null,null,null,null,null,"début"]
["Nom :"]
["Prénom :",null,null,null,"Fiche contrat objet confectionné",{"$f":"COUNTIF(INDIRECT(\"E\" & ROW() & \":$E$5000\"),E8)","v":1}]
["Classe :"]
[]
["Technicien_de_Fabrication_Bois_et_Matériaux_Associés",null,null,null,null,null,null,null,null,null,null,null,null,null,null,"titre"]
[]
["Centre d’intérêt : "]
["Objectif: "]
[]
["ON DONNE",null,"REFERENTIEL",null,null,null,null,"Notation"]
[null,null,"ON DEMANDE",null,"ON EXIGE (critères d’évaluation)",null,"Compétence","A","B","C","D","Coef"]
[null,null,"C_1_F",{"$f":"VLOOKUP(C18,'Referentiel Bac Pro TFBMA'!$A$149:$I$771,2,FALSE)","v":"S’INFORMER, ANALYSER"},null,null,null,null,null,null,null,null,null,null,null,"capacité"]
[null,null,"C_1.1_F",{"$f":"VLOOKUP(C19,'Referentiel Bac Pro TFBMA'!$A$149:$I$771,2,FALSE)","v":"Analyser,étudier les données de définition."},null,null,null,null,null,null,null,null,null,null,null,"compétence"]
[null,null,{"$f":"VLOOKUP(G20,'Referentiel Bac Pro TFBMA'!$A$149:$I$771,2,FALSE)","v":"Identifier et localiser les composants et les liaisons"},null,"_ Vérification qualité, composition",null,"C_1.1.1_F",null,null,null,null,1,null,{"$f":"M20*20/(100*L20)","v":0},null,"sous-compétence"]
[null,null,null,null,null,null,null,null,null,null,null,null,null,null,null,"libre"]
[null,null,null,null,null,null,"Objectif atteint:",{"$f":"L22*0.05","v":0},null,null,"Note sur 20 points:",{"$f":"(SUM(M17:M21)*20)/(SUM(L17:L21)*100)","v":0},null,null,null,"fin"]
[]
[]
[]
[]
[]
[]
[]
[]
[]
[]
[]
[]
[]
[]
[]
[]
[]
[]
[]
[]
[]
[]
[]
[]
[]
[]
[]
[]
[]
[{"$f":"'Referentiel Bac Pro TFBMA'!AV182","v":"Referentiel_pr_Capacités"},{"$f":"'Referentiel Bac Pro TFBMA'!AW182","v":"Technicien_de_Fabrication_Bois_et_Matériaux_Associés"},{"$f":"'Referentiel Bac Pro TFBMA'!AX182","v":"Technicien_Menuisier_Agenceur"}]
[null,{"$f":"'Referentiel Bac Pro TFBMA'!AW183","v":"C_1_F"},{"$f":"'Referentiel Bac Pro TFBMA'!AX183","v":"C_1_A"}]
[null,{"$f":"'Referentiel Bac Pro TFBMA'!AW184","v":"C_2_F"},{"$f":"'Referentiel Bac Pro TFBMA'!AX184","v":"C_2_A"}]
[null,{"$f":"'Referentiel Bac Pro TFBMA'!AW185","v":"C_3_F"},{"$f":"'Referentiel Bac Pro TFBMA'!AX185","v":"C_3_A"}]
[null,{"$f":"'Referentiel Bac Pro TFBMA'!AW186","v":"C_4_F"},{"$f":"'Referentiel Bac Pro TFBMA'!AX186","v":"C_4_A"}]
[null,{"$f":"'Referentiel Bac Pro TFBMA'!AW187","v":"C_5_F"},{"$f":"'Referentiel Bac Pro TFBMA'!AX187","v":"C_5_A"}]
[null,null,{"$f":"'Referentiel Bac Pro TFBMA'!AX188","v":"C_6_A"}]
[]
[]
[]
[{"$f":"'Referentiel Bac Pro TFBMA'!AV192","v":"Tableau intermédiare pour liste déroutante avec variable"},{"$f":"'Referentiel Bac Pro TFBMA'!AW192","v":"Technicien_de_Fabrication_Bois_et_Matériaux_Associés"},"B",{"$f":"VLOOKUP($A$11,B62:C63,2,FALSE)","v":"B"}]
[null,{"$f":"'Referentiel Bac Pro TFBMA'!AW193","v":"Technicien_Menuisier_Agenceur"},"C"]

{"sheet":"Referentiel Bac Pro TMA","index":2,"n_rows":957,"n_cols":6,"rows_kept":957,"cut":false,"hidden":false,"merged":[[950,0,955,0],[950,1,955,4],[956,0,961,0],[956,1,961,4],[932,0,937,0],[932,1,937,4],[938,0,943,0],[938,1,943,4],[944,0,949,0],[944,1,949,4],[914,0,919,0],[914,1,919,4],[920,0,925,0],[920,1,925,4],[926,0,931,0],[926,1,931,4],[896,0,901,0],[896,1,901,4],[902,0,907,0],[902,1,907,4],[908,0,913,0],[908,1,913,4],[878,0,883,0],[878,1,883,4],[884,0,889,0],[884,1,889,4],[890,0,895,0],[890,1,895,4],[860,0,865,0],[860,1,865,4],[866,0,871,0],[866,1,871,4],[872,0,877,0],[872,1,877,4],[842,0,847,0],[842,1,847,4],[848,0,853,0],[848,1,853,4],[854,0,859,0],[854,1,859,4],[824,0,829,0],[824,1,829,4],[830,0,835,0],[830,1,835,4],[836,0,841,0],[836,1,841,4],[806,0,811,0],[806,1,811,4],[812,0,817,0],[812,1,817,4],[818,0,823,0],[818,1,823,4],[788,0,793,0],[788,1,793,4],[794,0,799,0],[794,1,799,4],[800,0,805,0],[800,1,805,4],[770,0,775,0],[770,1,775,4],[776,0,781,0],[776,1,781,4],[782,0,787,0],[782,1,787,4],[752,0,757,0],[752,1,757,4],[758,0,763,0],[758,1,763,4],[764,0,769,0],[764,1,769,4],[734,0,739,0],[734,1,739,4],[740,0,745,0],[740,1,745,4],[746,0,751,0],[746,1,751,4],[716,0,721,0],[716,1,721,4],[722,0,727,0],[722,1,727,4],[728,0,733,0],[728,1,733,4],[698,0,703,0],[698,1,703,4],[704,0,709,0],[704,1,709,4],[710,0,715,0],[710,1,715,4],[680,0,685,0],[680,1,685,4],[686,0,691,0],[686,1,691,4],[692,0,697,0],[692,1,697,4],[662,0,667,0],[662,1,667,4],[668,0,673,0],[668,1,673,4],[674,0,679,0],[674,1,679,4],[644,0,649,0],[644,1,649,4],[650,0,655,0],[650,1,655,4],[656,0,661,0],[656,1,661,4],[638,0,643,0],[638,1,643,4],[620,0,625,0],[620,1,625,4],[626,0,631,0],[626,1,631,4],[632,0,637,0],[632,1,637,4],[602,0,607,0],[602,1,607,4],[608,0,613,0],[608,1,613,4],[614,0,619,0],[614,1,619,4],[584,0,589,0],[584,1,589,4],[590,0,595,0],[590,1,595,4],[596,0,601,0],[596,1,601,4],[566,0,571,0],[566,1,571,4],[572,0,577,0],[572,1,577,4],[578,0,583,0],[578,1,583,4],[548,0,553,0],[548,1,553,4],[554,0,559,0],[554,1,559,4],[560,0,565,0],[560,1,565,4],[530,0,535,0],[530,1,535,4],[536,0,541,0],[536,1,541,4],[542,0,547,0],[542,1,547,4],[512,0,517,0],[512,1,517,4],[518,0,523,0],[518,1,523,4],[524,0,529,0],[524,1,529,4],[494,0,499,0],[494,1,499,4],[500,0,505,0],[500,1,505,4],[506,0,511,0],[506,1,511,4],[476,0,481,0],[476,1,481,4],[482,0,487,0],[482,1,487,4],[488,0,493,0],[488,1,493,4],[458,0,463,0],[458,1,463,4],[464,0,469,0],[464,1,469,4],[470,0,475,0],[470,1,475,4],[440,0,445,0],[440,1,445,4],[446,0,451,0],[446,1,451,4],[452,0,457,0],[452,1,457,4],[422,0,427,0],[422,1,427,4],[428,0,433,0],[428,1,433,4],[434,0,439,0],[434,1,439,4],[404,0,409,0],[404,1,409,4],[410,0,415,0],[410,1,415,4],[416,0,421,0],[416,1,421,4],[386,0,391,0],[386,1,391,4],[392,0,397,0],[392,1,397,4],[398,0,403,0],[398,1,403,4],[368,0,373,0],[368,1,373,4],[374,0,379,0],[374,1,379,4],[380,0,385,0],[380,1,385,4],[345,0,350,0],[345,1,350,4],[356,0,361,0],[356,1,361,4],[362,0,367,0],[362,1,367,4],[327,0,332,0],[327,1,332,4],[333,0,338,0],[333,1,338,4],[339,0,344,0],[339,1,344,4],[309,0,314,0],[309,1,314,4],[315,0,320,0],[315,1,320,4],[321,0,326,0],[321,1,326,4],[291,0,296,0],[291,1,296,4],[297,0,302,0],[297,1,302,4],[303,0,308,0],[303,1,308,4],[273,0,278,0],[273,1,278,4],[279,0,284,0],[279,1,284,4],[285,0,290,0],[285,1,290,4],[261,0,266,0],[261,1,266,4],[267,0,272,0],[267,1,272,4],[237,0,242,0],[237,1,242,4],[243,0,248,0],[243,1,248,4],[249,0,254,0],[249,1,254,4],[225,0,230,0],[225,1,230,4],[231,0,236,0],[231,1,236,4],[207,0,212,0],[207,1,212,4],[213,0,218,0],[213,1,218,4],[255,0,260,0],[255,1,260,4],[163,0,163,8],[1,0,1,7],[2,0,2,4],[24,0,24,4],[46,0,46,4],[87,0,87,4],[132,0,132,4],[147,0,147,4],[219,0,224,0],[219,1,224,4]]}
[null,"Referentiel Bac Pro TMA"]
["CAPACITÉS, Compétences et sous compétences"]
["C1 S’INFORMER, ANALYSER"]
["C1-1 : Décoder et analyser les données de définition"]
[null,"C1.1.1","Identifier le contexte del’intervention lié à la fabrication et à la mise en oeuvre sur le chantier"]
[null,"C1.1.2","Décoder et interpréter des documents."]
[null,"C1.1.3","Extraire et classer les informations."]
[null,"C1.1.4","Identifier les ouvrages, les sous-ensembles, les éléments."]
[null,"C1.1.5","Identifier les caractéristiques géométriques et dimensionnelles."]
[null,"C1.1.6","Identifier et répertorier les liaisons."]
[null,"C1.1.7","Identifier les conditions de fonctionnement (mobilité…)."]
["C1-2 : Décoder et analyser les données opératoires"]
[null,"C1.2.1 ","Identifier et analyser les étapes de fabrication, de pose, de\ndépose, de maintenance"]
[null,"C1.2.2 ","Identifier et classer les tâches ou les interventions des\nsecteurs d’activités connexes"]
[null,"C1.2.3 ","Identifier et recenser les moyens de fabrication et de mise\nen oeuvre."]
["C1-3 : Décoder et analyser les données de gestion"]
[null,"C1.31","Décoder et analyser les documents de gestion."]
[null,"C1.32","Mettre en relation :\n_ les données de définition et les moyens de fabrication et de pose,\n_ la chronologie des opérations et les approvisionnements"]
["C1-4: Relever et réceptionner une situation de chantier"]
[null,"C1.41","Identifier l’environnement du chantier (accès, arrivées des\nénergies, stockage…)."]
[null,"C1.42","Relever les caractéristiques dimensionnelles, géométriques et physiques des supports et des espaces à agencer"]
[null,"C1.43","Réceptionner les supports."]
[null,"C1.44","Relever les positions de l’ouvrage à installer."]
[null,"C1.45","Consigner les contraintes techniques, mécaniques et esthétiques (charges, passage des réseaux….)"]
["C2 TRATER, DÉCIDER, PRÉPARER"]
["C2-1 : Choisir et adapter des solutions techniques"]
[null,"C2.1.1 ","Inventorier les caractéristiques techniques relatives :\n_ aux matériaux, produits, supports et équipements à\ndisposition,\n_ aux ouvrages et à leurs spécificités,\n_ au type de matériel à utiliser,\n_ à la qualité exigée,\n_ à la mise en sécurité du personnel"]
[null,"C2.1.2 ","Comparer  les performances techniques sur le plan :\n_ esthétique,\n_ technologique,\n_ ergonomique,\n_ Économique."]
[null,"C2.1.3","Choisir, proposer et/ou adapter une ou des solutions techniques relatives aux :\n_ matériaux, produits, supports et équipements,\n_ aux ouvrages avec leurs valeurs dimensionnements,\nleurs liaisons et principes de pose,\n_ au type de matériel à utiliser"]
[null,"C2.1.4","Justifier les choix et/ou les solutions techniques."]
["C2-2 : Établir les plans et tracés d’exécution d’un ouvrage"]
[null,"C2.2.1 "," Représenter et réaliser sous forme papier ou informatisée et autres supports :\n_ les relevés de situation de chantiers,\n_ les tracés d’atelier (épure, plan sur règle, gabarit,\nmontage d’usinage…),\n_ les dessins de fabrication,\n_ les tracés des formes complexes (chapeau de\ngendarme, anse de panier, vraies grandeurs, angle de corroyage"]
["C2-3 : Établir les quantitatifs de matériaux et de composants"]
[null,"C2.3.1 ","Répertorier, quantifier produits, matériaux, matériels et/ou composants"]
[null,"C2.3.2 ","Optimiser :\nles débits et les quantités.\n"]
[null,"C2.3.3","Établir et renseigner les documents techniques permettant la fabrication, la pose et/ou le suivi (feuille de débit, bon de commande, plan de calepinage)."]
["C2-4 : Établir le processus de fabrication, de dépose et de pose"]
[null,"C2.4.1 ","Répertorier les phases de la fabrication, de la pose et/ou de la dépose."]
[null,"C2.4.2 ","Recenser les moyens humains et matériels."]
[null,"C2.4.3 ","Établir les antériorités."]
[null,"C2.4.4 ","Élaborer le processus de fabrication de pose ou de dépose.\n- chronologie des opérations\n- références et surfaces d’appui\n- outillages et accessoires associés aux étapes\n- réglages, contrôles et corrections à effectuer\n- prévention des risques professionnels"]
["C2-5 : Établir les documents de suivi de réalisation"]
[null,"C2.5.1","Identifier les différents documents de suivi (planning, fiche\nsuiveuse, fiche de stock, fiche qualité, fiche de maintenance)"]
[null,"C2.5.2","Recenser les données liées :\n_ à la matière d’oeuvre,\n_ aux moyens humains et matériels,\n_ aux processus de fabrication et de mise en oeuvre sur chantier,\n_ aux contraintes de temps,\n_ à la coordination avec les autres corps d’état."]
[null,"C2.5.3","Renseigner les documents."]
[null,"C2.5.4","Proposer des ajustements."]
["C3 FABRIQUER"]
["C3-1 : Organiser et mettre en sécurité les postes de travail"]
[null,"C3.1.1 ","Identifier les risques d’accident et les risques d’atteinte à la santé liés au poste de travail."]
[null,"C3.1.2 ","Mettre en oeuvre les mesures de prévention"]
[null,"C3.1.3 ","Choisir et préparer les machines, matériel, outillages associés et/ou accessoires nécessaires (repérage et débit, usinage, contrôle, montage, mise en forme, finition,\nconditionnement…)."]
[null,"C3.1.4 ","Organiser les cheminements de la matière d'œuvre"]
[null,"C3.1.5 ","Disposer rationnellement les supports et les accessoires en amont et en aval des postes de travail"]
[null,"C3.1.6","Proposer des solutions d'amélioration des postes de travail"]
["C3-2 : Préparer les matériaux, les quincailleries et les accessoires"]
[null,"C3.2.1 ","Sélectionner et contrôler les matériaux, les quincailleries et les accessoires."]
[null,"C3.2.2 ","Approvisionner les matériaux, quincailleries et\naccessoires suivant les postes de travail."]
[null,"C3.2.3 ","Orienter et repérer les pièces et/ou sousensembles à usiner, à monter, à finir."]
["C3-3 : Installer et régler les outillages"]
[null,"C3.3.1 ","Choisir les outils"]
[null,"C3.3.2","Prérégler les outils associés."]
[null,"C3.3.3","Identifier sur la machine les organes de réglage et de commande"]
[null,"C3.3.4","Mettre et maintenir en position le ou les montages d’usinage, le ou les appareillages."]
[null,"C3.3.5","Installer les outils et régler les positions relatives au couple outil/pièce."]
[null,"C3.3.6","Identifier, sélectionner et/ou modifier les données nécessaires à l’opération (vitesse, cycles…)."]
["C3-4 : Conduire les opérations d’usinage : machines conventionnelles,\nPN, CN"]
[null,"C3.4.1 ","Procéder à la mise en route des mouvements nécessaires à l'opération"]
[null,"C3.4.2 ","Usiner les éléments"]
[null,"C3.4.3","Contrôler les éléments usinés"]
[null,"C3.4.4 ","Effectuer les actions correctives nécessaires"]
[null,"C3.4.5 ","Remettre les postes de travail dans leur état initial."]
["C3-5 : Conduire les opérations de mise en forme et de placage"]
[null,"C3.5.1 ","Positionner et régler les systèmes de serrage, de pressage, d’assemblage, de cadrage."]
[null,"C3.5.2","Encoller et/ou insérer les pièces et composants."]
[null,"C3.5.3","Cadrer, presser et solidariser les pièces et les composants."]
[null,"C3.5.4","Contrôler les caractéristiques mécaniques dimensionnelles, géométriques et esthétiques."]
[null,"C3.5.5","Effectuer si nécessaire les actions correctives."]
[null,"C3.5.6","Desserrer et extraire l’ouvrage."]
[null,"C3.5.7","Remettre le poste de travail dans son état initial"]
["C3-6 : Conduire les opérations de montage et de finition"]
[null,"C3.6.1 ","Sélectionner les pièces ou composants à monter, à finir."]
[null,"C3.6.2","Cadrer, monter et solidariser les sous ensembles "]
[null,"C3.6.3","Préparer les surfaces à traiter (ponçage, égrainage…)."]
[null,"C3.6.4","Mettre en oeuvre les produits et les matériels d’application."]
[null,"C3.6.5","Contrôler en cours, en fin de montage et de finition :\nles caractéristiques fonctionnelles, dimensionnelles, géométriques, esthétiques."]
[null,"C3.6.6","Remettre le poste de travail dans son état initial"]
[null,"C3.6.7","Conditionner et stocker les ouvrages finis"]
["C4 METTRE EN ŒUVRE \nSUR CHANTIER"]
["C4.1 : Organiser et mettre en sécurité la zone d’intervention"]
[null,"C4.1.1","Préparer les matériels, machines électroportatives et\noutillages adaptés au chantier."]
[null,"C4.1.2","Préparer les accessoires de mise en œuvre"]
[null,"C4.1.3","Vérifier les dispositifs de protection collective du chantier et proposer si nécessaire des modifications."]
[null,"C4.1.4","Protéger l’environnement immédiat de pose et de dépose :\n locaux habités ou non,\n installations et matériels."]
[null,"C4.1.5","Installer les moyens d’accès et échafaudages de travail adaptés."]
[null,"C4.1.6","S’équiper des protections individuelles adaptées à la situation du chantier."]
[null,"C4.1.7","Désinstaller le poste de travail."]
[null,"C4.1.8","Contrôler et ranger les matériels, machines et outillages."]
["C4.2 Contrôler la conformité des supports et des ouvrages"]
[null,"C4.2.1","Contrôler et réceptionner la conformité des ouvrages et des produits réalisés :\n leurs caractéristiques géométriques et dimensionnelles.\n les quantités.\n l’aspect, la finition, l’absence de dégradations."]
[null,"C4.2.2","Vérifier les référentiels et les réservations existants :\n niveau de sol brut, sol fini...\n aplomb des murs,\n géométrie des baies et trémies…\n axes et alignement."]
[null,"C4.2.3","Identifier les contraintes de mise en oeuvre : obstacles, réseaux, travaux, en cours…"]
["C4.3 Implanter, distribuer les ouvrages"]
[null,"C4.3.1","Tracer l’implantation des ouvrages :\n axes, alignements, épaisseurs,\n niveau, aplomb, surfaces de référence,\n répartition, calepinage…"]
[null,"C4.3.2","Distribuer, stocker les ouvrages, les produits et lesmatériaux sur la zone d'intervention"]
["C4.4 : Préparer, adapter, ajuster les ouvrages"]
[null,"C4.4.1","Préparer et/ou assembler les ouvrages et les quincailleries"]
[null,"C4.4.2","Présenter de façon provisoire les ouvrages de menuiserie, d’agencement."]
[null,"C4.4.3","Régler les ouvrages :\n_ niveau et aplomb,\n_ alignements, jeux, épaisseurs,\n_ mobilités et fonctionnement."]
[null,"C4.4.4","Maintenir en position temporaire les différents éléments ou composants."]
[null,"C4.4.5","Positionner les fixations"]
[null,"C4.4.6","Adapter, ajuster, traîner les ouvrages aux supports."]
["C4.5 : Conduire les opérations de pose sur chantier"]
[null,"C4.5.1"," Régler définitivement les ouvrages :\n_ niveau et aplomb,\n_ alignements, jeux, épaisseurs,\n_ mobilités et fonctionnement."]
[null,"C4.5.2","Mettre en oeuvre les fixations sur les supports :\n_ scellement hydraulique,\n_ scellement chimique,\n_ fixation mécanique."]
[null,"C4.5.3"," Mettre en oeuvre les produits d'étanchéité."]
[null,"C4.5.4","Solidariser les ouvrages aux supports."]
[null,"C4.5.5","Vérifier les mobilités et le bon fonctionnement des ouvrages."]
["C4.6 : Installer les équipements techniques, les accessoires"]
[null,"C4.6.1"," Préparer les équipements et les accessoires."]
[null,"C4.6.2"," Positionner et régler les équipements et les accessoires."]
[null,"C4.6.3","Fixer ou installer les garnitures, les équipements,\nles accessoires, les éléments de décoration"]
["C4.7 : Assurer les opérations de finition périphériques à l’ouvrage"]
[null,"C4.7.1","Identifier les opérations de finition à mettre en oeuvre (raccords : parquet, carrelage, faïence, plâtre, produits de finition…)."]
[null,"C4.7.2"," Protéger les ouvrages et les zones d'intervention."]
[null,"C4.7.3","Préparer les supports à retoucher, à finir, à raccorder…"]
[null,"C4.7.4","Réaliser les opérations de finition."]
[null,"C4.7.5","Nettoyer les ouvrages et les zones de l'intervention."]
["C4.8 : Gérer la dépose des ouvrages et l’environnement du chantier"]
[null,"C4.8.1","Identifier et préparer les opérations de dépose."]
[null,"C4.8.2","Déposer les ouvrages existants en respectant les locaux, les\nbiens l’environnement et les matériaux de réemploi."]
[null,"C4.8.3","Trier et stocker les déchets de chantier selon différents types :\n_ produits revalorisés,\n_ produits détruits,\n_ produits réemployés."]
[null,"C4.8.4","Évacuer les déchets selon les conditions du chantier."]
["C5 MAINTENIR ET REMETTRE EN ÉTAT"]
["C5.1 : Assurer la maintenance périodique des ouvrages"]
[null,"C5.1.1","Effectuer un diagnostic."]
[null,"C5.1.2","Localiser les organes à entretenir et/ou à réparer des ouvrages."]
[null,"C5.1.3","Protéger les existants."]
[null,"C5.1.4","Effectuer les opérations de maintenance et/ou de\nréparation :\n_ démontage et montage,\n_ remplacement d’organes simples (ferme-porte,\npoignée, barillet...),\n_ remplacement d’éléments défectueux (bois, verre…),\n_ graissage,\n_ réglage des jeux fonctionnels."]
["C5.2 Maintenir en état, les matériels, les équipements et les outillages"]
[null,"C5.2.1","Mettre en sécurité la zone d'intervention (machine…)"]
[null,"C5.2.2","Vérifier l’état de fonctionnement des matériels, des équipements, des outillages"]
[null,"C5.2.3","Contrôler l’état de coupe et le rangement des\noutillages"]
[null,"C5.2.4","Localiser et identifier une panne et/ou un dysfonctionnement"]
[null,"C5.2.5"," Évaluer et proposer des solutions de remise en état"]
[null,"C5.2.6","Affûter les outillages manuels"]
[null,"C5.2.7","Remplacer, régler les outillages de machines d’atelier et d’équipements portatifs"]
[null,"C5.2.8","Nettoyer et assurer l’entretien quotidien"]
["C6 ANIMER"]
["C6.1 : Animer une équipe"]
[null,"C6.1.1","Proposer et expliquer un lancement de travail et/ou de pose"]
[null,"C6.1.2","Exposer et argumenter des solutions de modifications."]
[null,"C6.1.3","Vérifier la bonne compréhension des consignes"]
["C6.2 : Animer les actions qualité et sécurité"]
[null,"C6.2.1","Préparer une action"]
[null,"C6.2.2","Animer un groupe de travail pour l’amélioration de la qualité."]
[null,"C6.2.3","Informer sur la sécurité pour l’utilisation des machines et des matériels à l'atelier et sur chantier."]
[null,"C6.2.4","Évaluer les résultats."]
["C6.3 : Rendre compte d’une activité"]
[null,"C6.3.1","Exposer et expliciter la mise en service et le fonctionnement d'appareils et de matériels"]
[null,"C6.3.2","Exposer et expliciter l'ensemble des informations et des décisions relatives à la gestion du suivi de l'ajustement, de la fabrication, de la pose"]
["C6.4 : Communiquer avec les différents les partenaires"]
[null,"C6.4.1","Savoir prendre contact avec un client, un fournisseur ou une autorité hiérarchique."]
[null,"C6.4.2","Identifier les services destinataires.\nSélectionner et rédiger l’information.\nDiffuser l’information.\nS’assurer de la réception de l’information."]
["TRI reférentiel par codes"]
["Code","Désignation",null,null,null,"Évaluation"]
["C_1_A","S’INFORMER, ANALYSER"]
["C_2_A","TRAITER, DECIDER, PRÉPARER"]
["C_3_A","FABRIQUER"]
["C_4_A","METTRE EN OUVRE SUR CHANTIER"]
["C_5_A","MAINTENIR ET REMETTRE EN ÉTAT"]
["C_6_A","ANIMER"]
[]
["C_1.1_A","Décoder et analyser les données de définition"]
["C_1.2_A","Décoder et analyser les données opératoires"]
["C_1.3_A","Décoder et analyser les données de gestion"]
["C_1.4_A","Relever et réceptionner une situation de chantier"]
[]
["C_2.1_A","Choisir et adapter des solutions techniques"]
["C_2.2_A","Établir les plans et tracés d’exécution d’un ouvrage"]
["C_2.3_A","Établir les quantitatifs de matériaux et de composants"]
["C_2.4_A","Établir le processus de fabrication, de dépose et de pose"]
["C_2.5_A","Établir les documents de suivi de réalisation"]
[]
["C_3.1_A","Organiser et mettre en sécurité les postes de travail"]
["C_3.2_A","Préparer les matériaux, les quincailleries et les accessoires"]
["C_3.3_A","Installer et régler les outillages"]
["C_3.4_A","Conduire les opérations d’usinage : machines conventionnelles,\nPN, CN"]
["C_3.5_A","Conduire les opérations de mise en forme et de placage"]
["C_3.6_A","Conduire les opérations de montage et de finition"]
[]
["C_4.1_A","Organiser et mettre en sécurité la zone d’intervention"]
["C_4.2_A","Contrôler la conformité des supports et des ouvrages"]
["C_4.3_A","Implanter, distribuer les ouvrages"]
["C_4.4_A","Préparer, adapter, ajuster les ouvrages"]
["C_4.5_A","Conduire les opérations de pose sur chantier"]
["C_4.6_A","Installer les équipements techniques, les accessoires"]
["C_4.7_A","Assurer les opérations de finition périphériques à l’ouvrage"]
["C_4.8_A","Gérer la dépose des ouvrages et l’environnement du chantier"]
[]
["C_5.1_A","Assurer la maintenance périodique des ouvrages"]
["C_5.2_A","Maintenir en état, les matériels, les équipements et les outillages"]
[]
["C_6.1_A","Animer une équipe"]
["C_6.2_A","Animer les actions qualité et sécurité"]
["C_6.3_A","Communiquer avec les différents les partenaires"]
["C_6.4_A","Rendre compte d’une activité"]
[]
["C_1.1.1_A","Identifier le contexte del’intervention lié à la fabrication et à la mise en oeuvre sur le chantier"]
[]
[]
[]
[]
[]
["C_1.1.2_A","Décoder et interpréter des documents."]
[]
[]
[]
[]
[]
["C_1.1.3_A","Extraire et classer les informations."]
[]
[]
[]
[]
[]
["C_1.1.4_A","Identifier les ouvrages, les sous-ensembles, les éléments."]
[]
[]
[]
[]
[]
["C_1.1.5_A","Identifier les caractéristiques géométriques et dimensionnelles."]
[]
[]
[]
[]
[]
["C_1.1.6_A","Identifier et répertorier les liaisons."]
[]
[]
[]
[]
[]
["C_1.1.7_A","Identifier les conditions de fonctionnement (mobilité…)."]
[]
[]
[]
[]
[]
["C_1.2.1_A","Identifier et analyser les étapes de fabrication, de pose, de\ndépose, de maintenance"]
[]
[]
[]
[]
[]
["C_1.2.2_A","Identifier et classer les tâches ou les interventions des\nsecteurs d’activités connexes"]
[]
[]
[]
[]
[]
["C_1.2.3_A","Identifier et recenser les moyens de fabrication et de mise\nen oeuvre."]
[]
[]
[]
[]
[]
["C_1.3.1_A","Décoder et analyser les documents de gestion."]
[]
[]
[]
[]
[]
["C_1.3.2_A","Mettre en relation :\n_ les données de définition et les moyens de fabrication et de pose,\n_ la chronologie des opérations et les approvisionnements"]
[]
[]
[]
[]
[]
["C_1.4.1_A","Identifier l’environnement du chantier (accès, arrivées des\nénergies, stockage…)."]
[]
[]
[]
[]
[]
["C_1.4.2_A","Relever les caractéristiques dimensionnelles, géométriques et physiques des supports et des espaces à agencer"]
[]
[]
[]
[]
[]
["C_1.4.3_A","Réceptionner les supports."]
[]
[]
[]
[]
[]
["C_1.4.4_A","Relever les positions de l’ouvrage à installer."]
[]
[]
[]
[]
[]
["C_1.4.5_A","Consigner les contraintes techniques, mécaniques et esthétiques (charges, passage des réseaux….)"]
[]
[]
[]
[]
[]
["C_2.1.1_A","Inventorier les caractéristiques techniques relatives :\n_ aux matériaux, produits, supports et équipements à\ndisposition,\n_ aux ouvrages et à leurs spécificités,\n_ au type de matériel à utiliser,\n_ à la qualité exigée,\n_ à la mise en sécurité du personnel"]
[]
[]
[]
[]
[]
["C_2.1.2_A","Comparer  les performances techniques sur le plan :\n_ esthétique,\n_ technologique,\n_ ergonomique,\n_ Économique."]
[]
[]
[]
[]
[]
["C_2.1.3_A","Choisir, proposer et/ou adapter une ou des solutions techniques relatives aux :\n_ matériaux, produits, supports et équipements,\n_ aux ouvrages avec leurs valeurs dimensionnements,\nleurs liaisons et principes de pose,\n_ au type de matériel à utiliser"]
[]
[]
[]
[]
[]
["C_2.1.4_A","Justifier les choix et/ou les solutions techniques."]
[]
[]
[]
[]
[]
["C_2.2.1_A"," Représenter et réaliser sous forme papier ou informatisée et autres supports :\n_ les relevés de situation de chantiers,\n_ les tracés d’atelier (épure, plan sur règle, gabarit,\nmontage d’usinage…),\n_ les dessins de fabrication,\n_ les tracés des formes complexes (chapeau de\ngendarme, anse de panier, vraies grandeurs, angle de corroyage"]
[]
[]
[]
[]
[]
["C_2.3.1_A","Répertorier, quantifier produits, matériaux, matériels et/ou composants"]
[]
[]
[]
[]
[]
["C_2.3.2_A","Optimiser :\nles débits et les quantités.\n"]
[]
[]
[]
[]
[]
["C_2.3.3_A","Établir et renseigner les documents techniques permettant la fabrication, la pose et/ou le suivi (feuille de débit, bon de commande, plan de calepinage)."]
[]
[]
[]
[]
["C_2.4.1_A","Répertorier les phases de la fabrication, de la pose et/ou de la dépose."]
[]
[]
[]
[]
[]
["C_2.4.2_A","Recenser les moyens humains et matériels."]
[]
[]
[]
[]
[]
["C_2.4.3_A","Établir les antériorités."]
[]
[]
[]
[]
[]
["C_2.4.4_A","Élaborer le processus de fabrication de pose ou de dépose.\n- chronologie des opérations\n- références et surfaces d’appui\n- outillages et accessoires associés aux étapes\n- réglages, contrôles et corrections à effectuer\n- prévention des risques professionnels"]
[]
[]
[]
[]
[]
["C_2.5.1_A","Identifier les différents documents de suivi (planning, fiche\nsuiveuse, fiche de stock, fiche qualité, fiche de maintenance)"]
[]
[]
[]
[]
[]
["C_2.5.2_A","Recenser les données liées :\n_ à la matière d’oeuvre,\n_ aux moyens humains et matériels,\n_ aux processus de fabrication et de mise en oeuvre sur chantier,\n_ aux contraintes de temps,\n_ à la coordination avec les autres corps d’état."]
[]
[]
[]
[]
[]
["C_2.5.3_A","Renseigner les documents."]
[]
[]
[]
[]
[]
["C_2.5.4_A","Proposer des ajustements."]
[]
[]
[]
[]
[]
["C_3.1.1_A","Identifier les risques d’accident et les risques d’atteinte à la santé liés au poste de travail."]
[]
[]
[]
[]
[]
["C_3.1.2_A","Mettre en oeuvre les mesures de prévention"]
[]
[]
[]
[]
[]
["C_3.1.3_A","Choisir et préparer les machines, matériel, outillages associés et/ou accessoires nécessaires (repérage et débit, usinage, contrôle, montage, mise en forme, finition,\nconditionnement…)."]
[]
[]
[]
[]
[]
["C_3.1.4_A","Organiser les cheminements de la matière d'œuvre"]
[]
[]
[]
[]
[]
["C_3.1.5_A","Disposer rationnellement les supports et les accessoires en amont et en aval des postes de travail"]
[]
[]
[]
[]
[]
["C_3.1.6_A","Proposer des solutions d'amélioration des postes de travail"]
[]
[]
[]
[]
[]
["C_3.2.1_A","Sélectionner et contrôler les matériaux, les quincailleries et les accessoires."]
[]
[]
[]
[]
[]
["C_3.2.2_A","Approvisionner les matériaux, quincailleries et\naccessoires suivant les postes de travail."]
[]
[]
[]
[]
[]
["C_3.2.3_A","Orienter et repérer les pièces et/ou sousensembles à usiner, à monter, à finir."]
[]
[]
[]
[]
[]
["C_3.3.1_A","Choisir les outils"]
[]
[]
[]
[]
[]
["C_3.3.2_A","Prérégler les outils associés."]
[]
[]
[]
[]
[]
["C_3.3.3_A","Identifier sur la machine les organes de réglage et de commande"]
[]
[]
[]
[]
[]
["C_3.3.4_A","Mettre et maintenir en position le ou les montages d’usinage, le ou les appareillages."]
[]
[]
[]
[]
[]
["C_3.3.5_A","Installer les outils et régler les positions relatives au couple outil/pièce."]
[]
[]
[]
[]
[]
["C_3.3.6_A","Identifier, sélectionner et/ou modifier les données nécessaires à l’opération (vitesse, cycles…)."]
[]
[]
[]
[]
[]
["C_3.4.1_A","Procéder à la mise en route des mouvements nécessaires à l'opération"]
[]
[]
[]
[]
[]
["C_3.4.2_A","Usiner les éléments"]
[]
[]
[]
[]
[]
["C_3.4.3_A","Contrôler les éléments usinés"]
[]
[]
[]
[]
[]
["C_3.4.4_A","Effectuer les actions correctives nécessaires"]
[]
[]
[]
[]
[]
["C_3.4.5_A","Remettre les postes de travail dans leur état initial."]
[]
[]
[]
[]
[]
["C_3.5.1_A","Positionner et régler les systèmes de serrage, de pressage, d’assemblage, de cadrage."]
[]
[]
[]
[]
[]
["C_3.5.2_A","Encoller et/ou insérer les pièces et composants."]
[]
[]
[]
[]
[]
["C_3.5.3_A","Cadrer, presser et solidariser les pièces et les composants."]
[]
[]
[]
[]
[]
["C_3.5.4_A","Contrôler les caractéristiques mécaniques dimensionnelles, géométriques et esthétiques."]
[]
[]
[]
[]
[]
["C_3.5.5_A","Effectuer si nécessaire les actions correctives."]
[]
[]
[]
[]
[]
["C_3.5.6_A","Desserrer et extraire l’ouvrage."]
[]
[]
[]
[]
[]
["C_3.5.7_A","Remettre le poste de travail dans son état initial"]
[]
[]
[]
[]
[]
["C_3.6.1_A","Sélectionner les pièces ou composants à monter, à finir."]
[]
[]
[]
[]
[]
["C_3.6.2_A","Cadrer, monter et solidariser les sous ensembles "]
[]
[]
[]
[]
[]
["C_3.6.3_A","Préparer les surfaces à traiter (ponçage, égrainage…)."]
[]
[]
[]
[]
[]
["C_3.6.4_A","Mettre en oeuvre les produits et les matériels d’application."]
[]
[]
[]
[]
[]
["C_3.6.5_A","Contrôler en cours, en fin de montage et de finition :\nles caractéristiques fonctionnelles, dimensionnelles, géométriques, esthétiques."]
[]
[]
[]
[]
[]
["C_3.6.6_A","Remettre le poste de travail dans son état initial"]
[]
[]
[]
[]
[]
["C_3.6.7_A","Conditionner et stocker les ouvrages finis"]
[]
[]
[]
[]
[]
["C_4.1.1_A","Préparer les matériels, machines électroportatives et\noutillages adaptés au chantier."]
[]
[]
[]
[]
[]
["C_4.1.2_A","Préparer les accessoires de mise en œuvre"]
[]
[]
[]
[]
[]
["C_4.1.3_A","Vérifier les dispositifs de protection collective du chantier et proposer si nécessaire des modifications."]
[]
[]
[]
[]
[]
["C_4.1.4_A","Protéger l’environnement immédiat de pose et de dépose :\n locaux habités ou non,\n installations et matériels."]
[]
[]
[]
[]
[]
["C_4.1.5_A","Installer les moyens d’accès et échafaudages de travail adaptés."]
[]
[]
[]
[]
[]
["C_4.1.6_A","S’équiper des protections individuelles adaptées à la situation du chantier."]
[]
[]
[]
[]
[]
["C_4.1.7_A","Désinstaller le poste de travail."]
[]
[]
[]
[]
[]
["C_4.1.8_A","Contrôler et ranger les matériels, machines et outillages."]
[]
[]
[]
[]
[]
["C_4.2.1_A","Contrôler et réceptionner la conformité des ouvrages et des produits réalisés :\n leurs caractéristiques géométriques et dimensionnelles.\n les quantités.\n l’aspect, la finition, l’absence de dégradations."]
[]
[]
[]
[]
[]
["C_4.2.2_A","Vérifier les référentiels et les réservations existants :\n niveau de sol brut, sol fini...\n aplomb des murs,\n géométrie des baies et trémies…\n axes et alignement."]
[]
[]
[]
[]
[]
["C_4.2.3_A","Identifier les contraintes de mise en oeuvre : obstacles, réseaux, travaux, en cours…"]
[]
[]
[]
[]
[]
["C_4.3.1_A","Tracer l’implantation des ouvrages :\n axes, alignements, épaisseurs,\n niveau, aplomb, surfaces de référence,\n répartition, calepinage…"]
[]
[]
[]
[]
[]
["C_4.3.2_A","Distribuer, stocker les ouvrages, les produits et lesmatériaux sur la zone d'intervention"]
[]
[]
[]
[]
[]
["C_4.4.1_A","Préparer et/ou assembler les ouvrages et les quincailleries"]
[]
[]
[]
[]
[]
["C_4.4.2_A","Présenter de façon provisoire les ouvrages de menuiserie, d’agencement."]
[]
[]
[]
[]
[]
["C_4.4.3_A","Régler les ouvrages :\n_ niveau et aplomb,\n_ alignements, jeux, épaisseurs,\n_ mobilités et fonctionnement."]
[]
[]
[]
[]
[]
["C_4.4.4_A","Maintenir en position temporaire les différents éléments ou composants."]
[]
[]
[]
[]
[]
["C_4.4.5_A","Positionner les fixations"]
[]
[]
[]
[]
[]
["C_4.4.6_A","Adapter, ajuster, traîner les ouvrages aux supports."]
[]
[]
[]
[]
[]
["C_4.5.1_A"," Régler définitivement les ouvrages :\n_ niveau et aplomb,\n_ alignements, jeux, épaisseurs,\n_ mobilités et fonctionnement."]
[]
[]
[]
[]
[]
["C_4.5.2_A","Mettre en oeuvre les fixations sur les supports :\n_ scellement hydraulique,\n_ scellement chimique,\n_ fixation mécanique."]
[]
[]
[]
[]
[]
["C_4.5.3_A"," Mettre en oeuvre les produits d'étanchéité."]
[]
[]
[]
[]
[]
["C_4.5.4_A","Solidariser les ouvrages aux supports."]
[]
[]
[]
[]
[]
["C_4.5.5_A","Vérifier les mobilités et le bon fonctionnement des ouvrages."]
[]
[]
[]
[]
[]
["C_4.6.1_A"," Préparer les équipements et les accessoires."]
[]
[]
[]
[]
[]
["C_4.6.2_A"," Positionner et régler les équipements et les accessoires."]
[]
[]
[]
[]
[]
["C_4.6.3_A","Fixer ou installer les garnitures, les équipements,\nles accessoires, les éléments de décoration"]
[]
[]
[]
[]
[]
["C_4.7.1_A","Identifier les opérations de finition à mettre en oeuvre (raccords : parquet, carrelage, faïence, plâtre, produits de finition…)."]
[]
[]
[]
[]
[]
["C_4.7.2_A"," Protéger les ouvrages et les zones d'intervention."]
[]
[]
[]
[]
[]
["C_4.7.3_A","Préparer les supports à retoucher, à finir, à raccorder…"]
[]
[]
[]
[]
[]
["C_4.7.4_A","Réaliser les opérations de finition."]
[]
[]
[]
[]
[]
["C_4.7.5_A","Nettoyer les ouvrages et les zones de l'intervention."]
[]
[]
[]
[]
[]
["C_4.8.1_A","Identifier et préparer les opérations de dépose."]
[]
[]
[]
[]
[]
["C_4.8.2_A","Déposer les ouvrages existants en respectant les locaux, les\nbiens l’environnement et les matériaux de réemploi."]
[]
[]
[]
[]
[]
["C_4.8.3_A","Trier et stocker les déchets de chantier selon différents types :\n_ produits revalorisés,\n_ produits détruits,\n_ produits réemployés."]
[]
[]
[]
[]
[]
["C_4.8.4_A","Évacuer les déchets selon les conditions du chantier."]
[]
[]
[]
[]
[]
["C_5.1.1_A","Effectuer un diagnostic."]
[]
[]
[]
[]
[]
["C_5.1.2_A","Localiser les organes à entretenir et/ou à réparer des ouvrages."]
[]
[]
[]
[]
[]
["C_5.1.3_A","Protéger les existants."]
[]
[]
[]
[]
[]
["C_5.1.4_A","Effectuer les opérations de maintenance et/ou de\nréparation :\n_ démontage et montage,\n_ remplacement d’organes simples (ferme-porte,\npoignée, barillet...),\n_ remplacement d’éléments défectueux (bois, verre…),\n_ graissage,\n_ réglage des jeux fonctionnels."]
[]
[]
[]
[]
[]
["C_5.2.1_A","Mettre en sécurité la zone d'intervention (machine…)"]
[]
[]
[]
[]
[]
["C_5.2.2_A","Vérifier l’état de fonctionnement des matériels, des équipements, des outillages"]
[]
[]
[]
[]
[]
["C_5.2.3_A","Contrôler l’état de coupe et le rangement des\noutillages"]
[]
[]
[]
[]
[]
["C_5.2.4_A","Localiser et identifier une panne et/ou un dysfonctionnement"]
[]
[]
[]
[]
[]
["C_5.2.5_A"," Évaluer et proposer des solutions de remise en état"]
[]
[]
[]
[]
[]
["C_5.2.6_A","Affûter les outillages manuels"]
[]
[]
[]
[]
[]
["C_5.2.7_A","Remplacer, régler les outillages de machines d’atelier et d’équipements portatifs"]
[]
[]
[]
[]
[]
["C_5.2.8_A","Nettoyer et assurer l’entretien quotidien"]
[]
[]
[]
[]
[]
["C_6.1.1_A","Proposer et expliquer un lancement de travail et/ou de pose"]
[]
[]
[]
[]
[]
["C_6.1.2_A","Exposer et argumenter des solutions de modifications."]
[]
[]
[]
[]
[]
["C_6.1.3_A","Vérifier la bonne compréhension des consignes"]
[]
[]
[]
[]
[]
["C_6.2.1_A","Préparer une action"]
[]
[]
[]
[]
[]
["C_6.2.2_A","Animer un groupe de travail pour l’amélioration de la qualité."]
[]
[]
[]
[]
[]
["C_6.2.3_A","Informer sur la sécurité pour l’utilisation des machines et des matériels à l'atelier et sur chantier."]
[]
[]
[]
[]
[]
["C_6.2.4_A","Évaluer les résultats."]
[]
[]
[]
[]
[]
["C_6.3.1_A","Exposer et expliciter la mise en service et le fonctionnement d'appareils et de matériels"]
[]
[]
[]
[]
[]
["C_6.3.2_A","Exposer et expliciter l'ensemble des informations et des décisions relatives à la gestion du suivi de l'ajustement, de la fabrication, de la pose"]
[]
[]
[]
[]
[]
["C_6.4.1_A","Savoir prendre contact avec un client, un fournisseur ou une autorité hiérarchique."]
[]
[]
[]
[]
[]
["C_6.4.2_A","Identifier les services destinataires.\nSélectionner et rédiger l’information.\nDiffuser l’information.\nS’assurer de la réception de l’information."]

{"sheet":"Referentiel Bac Pro TFBMA","index":3,"n_rows":776,"n_cols":51,"rows_kept":776,"cut":false,"hidden":false,"merged":[[758,0,763,0],[758,1,763,4],[764,0,769,0],[764,1,769,4],[770,0,775,0],[770,1,775,4],[740,0,745,0],[740,1,745,4],[746,0,751,0],[746,1,751,4],[752,0,757,0],[752,1,757,4],[716,0,721,0],[716,1,721,4],[728,0,733,0],[728,1,733,4],[734,0,739,0],[734,1,739,4],[722,0,727,0],[722,1,727,4],[698,0,703,0],[698,1,703,4],[704,0,709,0],[704,1,709,4],[710,0,715,0],[710,1,715,4],[680,0,685,0],[680,1,685,4],[686,0,691,0],[686,1,691,4],[692,0,697,0],[692,1,697,4],[662,0,667,0],[662,1,667,4],[668,0,673,0],[668,1,673,4],[674,0,679,0],[674,1,679,4],[644,0,649,0],[644,1,649,4],[650,0,655,0],[650,1,655,4],[656,0,661,0],[656,1,661,4],[626,0,631,0],[626,1,631,4],[632,0,637,0],[632,1,637,4],[638,0,643,0],[638,1,643,4],[608,0,613,0],[608,1,613,4],[614,0,619,0],[614,1,619,4],[620,0,625,0],[620,1,625,4],[590,0,595,0],[590,1,595,4],[596,0,601,0],[596,1,601,4],[602,0,607,0],[602,1,607,4],[572,0,577,0],[572,1,577,4],[578,0,583,0],[578,1,583,4],[584,0,589,0],[584,1,589,4],[554,0,559,0],[554,1,559,4],[560,0,565,0],[560,1,565,4],[566,0,571,0],[566,1,571,4],[536,0,541,0],[536,1,541,4],[542,0,547,0],[542,1,547,4],[548,0,553,0],[548,1,553,4],[518,0,523,0],[518,1,523,4],[524,0,529,0],[524,1,529,4],[530,0,535,0],[530,1,535,4],[500,0,505,0],[500,1,505,4],[506,0,511,0],[506,1,511,4],[512,0,517,0],[512,1,517,4],[482,0,487,0],[482,1,487,4],[488,0,493,0],[488,1,493,4],[494,0,499,0],[494,1,499,4],[464,0,469,0],[464,1,469,4],[470,0,475,0],[470,1,475,4],[476,0,481,0],[476,1,481,4],[446,0,451,0],[446,1,451,4],[452,0,457,0],[452,1,457,4],[458,0,463,0],[458,1,463,4],[428,0,433,0],[428,1,433,4],[434,0,439,0],[434,1,439,4],[440,0,445,0],[440,1,445,4],[410,0,415,0],[410,1,415,4],[416,0,421,0],[416,1,421,4],[422,0,427,0],[422,1,427,4],[392,0,397,0],[392,1,397,4],[398,0,403,0],[398,1,403,4],[404,0,409,0],[404,1,409,4],[374,0,379,0],[374,1,379,4],[380,0,385,0],[380,1,385,4],[386,0,391,0],[386,1,391,4],[356,0,361,0],[356,1,361,4],[362,0,367,0],[362,1,367,4],[368,0,373,0],[368,1,373,4],[338,0,343,0],[338,1,343,4],[344,0,349,0],[344,1,349,4],[350,0,355,0],[350,1,355,4],[320,0,325,0],[320,1,325,4],[326,0,331,0],[326,1,331,4],[332,0,337,0],[332,1,337,4],[302,0,307,0],[302,1,307,4],[308,0,313,0],[308,1,313,4],[314,0,319,0],[314,1,319,4],[284,0,289,0],[284,1,289,4],[290,0,295,0],[290,1,295,4],[296,0,301,0],[296,1,301,4],[266,0,271,0],[266,1,271,4],[272,0,277,0],[272,1,277,4],[278,0,283,0],[278,1,283,4],[248,0,253,0],[248,1,253,4],[254,0,259,0],[254,1,259,4],[260,0,265,0],[260,1,265,4],[230,0,235,0],[230,1,235,4],[236,0,241,0],[236,1,241,4],[242,0,247,0],[242,1,247,4],[212,0,217,0],[212,1,217,4],[218,0,223,0],[218,1,223,4],[224,0,229,0],[224,1,229,4],[194,0,199,0],[194,1,199,4],[200,0,205,0],[200,1,205,4],[206,0,211,0],[206,1,211,4],[182,1,187,4],[182,0,187,0],[188,0,193,0],[188,1,193,4],[134,0,134,4],[1,0,1,7],[2,0,2,4],[28,0,28,4],[66,0,66,4],[103,0,103,4]]}
[null,"Referentiel Bac Pro TFBMA"]
["CAPACITÉS, Compétences et sous compétences"]
["C1 S’INFORMER, ANALYSER"]
["C1-1 : Analyser,étudier les données de définition."]
[null,"C1.1.1","Identifier et localiser les composants et les liaisons"]
[null,"C1.1.2","Localiser et interpréter les mouvements"]
[null,"C1.1.3","Décrire et justifier une solution technique"]
[null,"C1.1.4","Identifier et interpréter les spécification géométriques, dimensionnelles, les états de surfaces."]
[null,"C1.1.5","Etablir des schémas, des croquis des solutions techniques"]
[null,"C1.1.6","reconnaitre les spécifications des matériaux (carctéristiques dans une base de données ou sur un réseau)"]
["C1-2 : Analyser les données opératoires"]
[null,"C1.2.1 ","Analyser et justifier la chronologie des étapes de production"]
[null,"C1.2.2 ","Identifier et justifier les surfaces de références"]
[null,"C1.2.3 ","reconnaitre l'état de transformation du produit ( de la pièce)"]
[null,"C1.2.4 ","Repérer les machines et les outils nécessaires à la fabrication"]
[null,"C1.2.5 ","Vérifier si les systèmes de transfert et/ou de manutention sont adaptés"]
[null,"C1.2.6","Justifier l’utilisation d’un montage d’usinage et vérifier sa disponibilité."]
[null,"C1.2.7","Vérifier si les opérations de fabrication peuvent être réalisées dans le respect des conditions de sécurité pour les opérateurs."]
["C1-3 : Analyser les données de gestion"]
[null,"C1.31","Analyser et identifier les différents temps prévisionnels du cycle de production."]
[null,"C1.32","Analyser et justifier les éléments de coût relatifs aux indicateurs de production. (délais, temps, quantités de production...)."]
[null,"C1.33","Analyser les éléments de gestion de l’approvisionnement :"]
[null,null," -          nature et quantités"]
[null,null,"-          qualité, composition"]
[null,null," -          périodicité de l’approvisionnement."]
["C1-4: Emettre des propositions d'amélioration"]
[null,"C1.41","Identifier des possibilités de rationalisation et d’optimisation relatives aux procédés, matériels et outils utilisés."]
[null,"C1.42","Identifier des possibilités de rationalisation et d’optimisation relatives aux procédés, matériels et outils utilisés."]
["C2 TRAITER, DECIDER"]
["C2-1 : Etablir le processus de production"]
[null,"C2.1.1 ","Recenser les étapes et les contraintes de production."]
[null,"C2.1.2 ","Choisir un matériel en fonction des taux de charge."]
["C2-2 : Etablir un mode opératoire"]
[null,"C2.2.1 ","Établir le mode opératoire :"]
[null,null,"de montage,"]
[null,null,"de contrôle,"]
[null,null,"de finition,"]
[null,null,"de conditionnement."]
[null,"C2.2.2 ","Définir, pour chaque mode opératoire, la nature, l’ordre chronologique des opérations, et les moyens matériels. "]
[null,"C2.2.3","Définir les moyens humains."]
["C2-3 : Etablir des documents de fabrication"]
[null,"C2.3.1 ","Établir une gamme d’usinage, une planification, un contrat de phase…"]
[null,"C2.3.2 ","Élaborer une fiche de débit."]
[null,"C2.3.3","Proposer des solutions pour optimiser les coûts, les processus, le rendement matière…"]
["C2-4 : Etablir les quantitatifs de matériaux et composants"]
[null,"C2.4.1 ","Lister et quantifier les matériaux, composants, accessoires."]
[null,"C2.4.2 ","Regrouper les composants par famille, processus, formes, matériaux…"]
[null,"C2.4.3 ","Optimiser le rendement matière en fonction :"]
[null,null," - des dimensions commerciales"]
[null,null," - de l’état des stocks"]
[null,"C2.4.4 ","Renseigner le document de suivi de fabrication :"]
[null,null," - les quantités matières"]
[null,null," - les consommables"]
[null,null," - les temps passés"]
["C2-5 : Elaborer un programme avec un logiciel de FAO"]
[null,"C2.5.1","Renseigner les variables dimensionnelles."]
[null,"C2.5.2","Identifier les référentiels. (Prise Origine Machine, Prise RÉFérence, DÉCalage)."]
[null,"C2.5.3","Générer le programme."]
[null,"C2.5.4","Valider par simulation graphique."]
[null,"C2.5.5","Éditer ou afficher les fiches outils si nécessaire."]
["C2-6 : Choisir et prérégler des outils, des apareillages"]
[null,"C2.6.1","Choisir les outils en rapport avec les usinages attendus."]
[null,"C2.6.2","Effectuer les réglages externes."]
[null,"C2.6.3","Déterminer et Mesurer les jauges outils."]
[null,"C2.6.4","Vérifier la disponibilité de l’appareillage spécifique (montage d’usinage…)."]
[null,"C2.6.5","Préparer l’appareillage spécifique (montage d’usinage…)."]
["C3 METTRE EN ŒUVRE"]
["C3-1 : Mettre en œuvre un moyen de fabrication"]
[null,"C3.1.1 ","Introduire les programmes ou paramètres en mémoire."]
[null,"C3.1.2 ","Régler et monter les outils entre-eux."]
[null,"C3.1.3 ","Mettre en position les outils sur les broches, fourreaux, sur les têtes multibroches ou magasins d’outils."]
[null,"C3.1.4 ","Introduire les jauges outils."]
[null,"C3.1.5 ","Régler les référentiels machine ou Prendre les références machines (PREF), décalage d’origine…"]
[null,"C3.1.6","Fabriquer ou modifier les montages d’usinage."]
[null,"C3.1.7","Installer et régler les montages d’usinage."]
[null,"C3.1.8","Installer et régler les dispositifs d’amenage, les systèmes de transfert et d’approvisionnement."]
[null,"C3.1.9","Installer et régler les dispositifs de sécurité."]
[null,"C3.1.10","Tester le cycle d’usinage."]
[null,"C3.1.11","Vérifier la conformité du réglage."]
[null,"C3.1.12","Apporter si nécessaire les modifications."]
[null,"C3.1.13","Réaliser les opérations d’usinage."]
[null,"C3.1.14","Vérifier la concordance des résultats avec les spécifications fournies."]
["C3-2 : Mettre en œuvre un moyen de montage"]
[null,"C3.2.1 ","Régler et organiser les moyens de montage."]
[null,"C3.2.2 ","Installer les dispositifs de sécurité."]
[null,"C3.2.3 ","Assurer l’approvisionnement des composants."]
[null,"C3.2.4","Effectuer les opérations de montage."]
[null,"C3.2.5 ","Vérifier la conformité du produit."]
["C3-3 : Mettre en œuvre un moyen de finition"]
[null,"C3.3.1 ","Réaliser les opérations courantes de finition."]
["C3-4 : Mettre en œuvre des procédures de contrôle"]
[null,"C3.4.1 ","Organiser le poste et les moyens de contrôle."]
[null,"C3.4.2 ","Réaliser les mesurages."]
[null,"C3.4.3","Saisir les résultats."]
[null,"C3.4.4 ","Effectuer les traitements."]
[null,"C3.4.5 ","Décider de l’acceptation du produit, de sa retouche ou de son rejet."]
[null,"C3.4.6 ","Vérifier et ajuster les quantités."]
["C3-5 : Assurer le suivi de la fabrication"]
[null,"C3.5.1 ","Mesurer les écarts de temps par rapport au prévisionnel."]
[null,"C3.5.2","Compléter les documents de suivi."]
[null,"C3.5.3","Proposer des mesures d’ajustement."]
["C3-6 : Mettre en œuvre un moyen  de conditionnement"]
[null,"C3.6.1 ","Conditionner les ouvrages (à plat ou en volume)."]
["C4 MAINTENIR, LES MATERIELS, LES EQUIPEMENTS"]
["C4.1 : Mettre en œuvre un moyen de fabrication"]
[null,"C4.1.1","Appliquer une démarche d’analyse de situations à risques."]
[null,"C4.1.2","Identifier, analyser et hiérarchiser les risques."]
[null,"C4.1.3","Proposer les solutions de prévention."]
[null,"C4.1.4","Transmettre les informations."]
[null,"C4.1.5","Suivre les procédures :"]
[null,null,"mise hors tension"]
[null,null,"mise hors pression"]
[null,null,"neutralisation des énergies, potentielles"]
[null,"C4.1.6","Consigner le matériel."]
["C4.2","Contribuer à assurer la sûreté de fonctionnement d'un système de production"]
[null,"C4.2.1","Suivre le planning de maintenance"]
[null,"C4.2.2","Adapter les interventions en fonction des charges des matériels."]
[null,"C4.2.3","Appliquer les consignes de maintenance du constructeur."]
["C4.3","Effectuer la maintenance préventive."]
[null,"C4.3.1","Appliquer les consignes des fiches de poste."]
[null,"C4.3.2","Contrôler et vérifier les niveaux des fluides, des pressions."]
[null,"C4.3.3","Contrôler les organes de transmission (état, tension)."]
[null,"C4.3.4","Mettre à jour le dossier historique de la machine."]
[null,"C4.3.5","Identifier une fonction défaillante."]
[null,"C4.3.6","Localiser les bruits anormaux, des vibrations…"]
[null,"C4.3.7","Alerter et rendre compte."]
[null,"C4.3.8","Déclarer la machine non opérationnelle."]
[null,"C4.3.9","Proposer un pré diagnostic."]
["C4.4 : Maintenir en état les outils de coupe"]
[null,"C4.4.1","Nettoyer les outils de coupe."]
[null,"C4.4.2","Remplacer les arêtes tranchantes, des outils à plaquettes jetables."]
[null,"C4.4.3","Effectuer les mesures et le contrôles des jauges outils."]
[null,"C4.4.4","Mettre à jour les fiches outils."]
[null,"C4.4.5","Assurer l’approvisionnement  des consommables (plaquettes)."]
["C5 COMMUNIQUER"]
["C5.1 : Mettre en œuvre les technologies de l'information et de la communication"]
[null,"C5.1.1","Effectuer une recherche documentaire."]
[null,"C5.1.2","Émettre et réceptionner des courriers électroniques."]
["C5.2 Encadree une équipe sur un îlot de production"]
[null,"C5.2.1","Donner, transmettre des consignes, des informations."]
[null,"C5.2.2","Prendre en compte des remarques, des avis, des propositions."]
["C5.3 Emettre des avis, des propositions"]
[null,"C5.3.1","Formuler et transmettre des avis, des informations."]
[null,"C5.3.2","Émettre, rédiger des propositions d’optimisation, d’amélioration, de rationalisation."]
[]
[]
["TRI reférentiel par codes"]
["Code","Désignation",null,null,null,"Critère évaluation 1","Critère évaluation 2","Critère évaluation 3","Critère évaluation 4"]
["C_1_F","S’INFORMER, ANALYSER"]
["C_2_F","TRAITER, DECIDER"]
["C_3_F","METTRE EN ŒUVRE"]
["C_4_F","MAINTENIR, LES MATERIELS, LES EQUIPEMENTS"]
["C_5_F","COMMUNIQUER"]
[]
["C_1.1_F","Analyser,étudier les données de définition."]
["C_1.2_F","Analyser les données opératoires"]
["C_1.3_F"," Analyser les données de gestion"]
["C_1.4_F","Emettre des propositions d'amélioration"]
[]
["C_2.1_F","Etablir le processus de production"]
["C_2.2_F","Etablir un mode opératoire"]
["C_2.3_F","Etablir des documents de fabrication"]
["C_2.4_F","Etablir les quantitatifs de matériaux et composants"]
["C_2.5_F","Elaborer un programme avec un logiciel de FAO"]
["C_2.6_F","Choisir et prérégler des outils, des apareillages"]
[]
["C_3.1_F","Mettre en œuvre un moyen de fabrication"]
["C_3.2_F","Mettre en œuvre un moyen de montage"]
["C_3.3_F","Mettre en œuvre un moyen de finition"]
["C_3.4_F","Mettre en œuvre des procédures de contrôle"]
["C_3.5_F","Assurer le suivi de la fabrication"]
["C_3.6_F","Mettre en œuvre un moyen  de conditionnement, Contribuer à assurer la sûreté de fonctionnement d'un système de production"]
[]
["C_4.1_F","Mettre en œuvre un moyen de fabrication"]
["C_4.2_F","Contribuer à assurer la sûreté de fonctionnement d'un système de production"]
["C_4.3_F","Effectuer la maintenance préventive."]
["C_4.4_F","Maintenir en état les outils de coupe"]
[]
["C_5.1_F","Mettre en œuvre les technologies de l'information et de la communication"]
["C_5.2_F","Encadree une équipe sur un îlot de production"]
["C_5.3_F","Emettre des avis, des propositions"]
[null,null,null,null,null,null,null,"Sous_compétences_pr_Critère_évaluation_TFBMA","Critère_évaluation_TFBMA",null,null,null,null,null,null,"Sous_compétences_pr_Compétences_TFBMA",{"$f":"$A$155","v":"C_1.1_F"},{"$f":"$A$156","v":"C_1.2_F"},{"$f":"$A$157","v":"C_1.3_F"},{"$f":"$A$158","v":"C_1.4_F"},{"$f":"$A$160","v":"C_2.1_F"},{"$f":"$A$161","v":"C_2.2_F"},{"$f":"$A$162","v":"C_2.3_F"},{"$f":"$A$163","v":"C_2.4_F"},{"$f":"$A$164","v":"C_2.5_F"},{"$f":"$A$165","v":"C_2.6_F"},{"$f":"$A$167","v":"C_3.1_F"},{"$f":"$A$168","v":"C_3.2_F"},{"$f":"$A$169","v":"C_3.3_F"},{"$f":"$A$170","v":"C_3.4_F"},{"$f":"$A$171","v":"C_3.5_F"},{"$f":"$A$172","v":"C_3.6_F"},{"$f":"$A$174","v":"C_4.1_F"},{"$f":"$A$175","v":"C_4.2_F"},{"$f":"$A$176","v":"C_4.3_F"},{"$f":"$A$177","v":"C_4.4_F"},{"$f":"$A$179","v":"C_5.1_F"},{"$f":"$A$180","v":"C_5.2_F"},{"$f":"$A$181","v":"C_5.3_F"},null,"Capacités_pr_Compétences_TFBMA",{"$f":"$A$149","v":"C_1_F"},{"$f":"$A$150","v":"C_2_F"},{"$f":"$A$151","v":"C_3_F"},{"$f":"$A$152","v":"C_4_F"},{"$f":"$A$153","v":"C_5_F"},null,"Referentiel_pr_Capacités","Technicien_de_Fabrication_Bois_et_Matériaux_Associés","Technicien_Menuisier_Agenceur"]
["C_1.1.1_F","Identifier et localiser les composants et les liaisons",null,null,null,"A VOIR AC CONSTRUCTION1",null,{"$f":"$A$183","v":"C_1.1.1_F"},{"$f":"F183","v":"A VOIR AC CONSTRUCTION1"},{"$f":"F184","v":"A VOIR AC CONSTRUCTION2"},{"$f":"F185","v":"A VOIR AC CONSTRUCTION3"},{"$f":"F186","v":"A VOIR AC CONSTRUCTION4"},{"$f":"F187","v":"A VOIR AC CONSTRUCTION5"},{"$f":"F188","v":"A VOIR AC CONSTRUCTION6"},null,null,{"$f":"$A$183","v":"C_1.1.1_F"},{"$f":"$A$219","v":"C_1.2.1_F"},{"$f":"$A$261","v":"C_1.3.1_F"},{"$f":"$A$279","v":"C_1.4.1_F"},{"$f":"$A$291","v":"C_2.1.1_F"},{"$f":"$A$303","v":"C_2.2.1_F"},{"$f":"$A$321","v":"C_2.3.1_F"},{"$f":"$A$339","v":"C_2.4.1_F"},{"$f":"$A$363","v":"C_2.5.1_F"},{"$f":"$A$393","v":"C_2.6.1_F"},{"$f":"$A$423","v":"C_3.1.1_F"},{"$f":"$A$507","v":"C_3.2.1_F"},{"$f":"$A$537","v":"C_3.3.1_F"},{"$f":"$A$543","v":"C_3.4.1_F"},{"$f":"$A$579","v":"C_3.5.1_F"},{"$f":"$A$597","v":"C_3.6.1_F"},{"$f":"$A$603","v":"C_4.1.1_F"},{"$f":"$A$639","v":"C_4.2.1_F"},{"$f":"$A$657","v":"C_4.3.1_F"},{"$f":"$A$711","v":"C_4.4.1_F"},{"$f":"$A$741","v":"C_5.1.1_F"},{"$f":"$A$753","v":"C_5.2.1_F"},{"$f":"$A$765","v":"C_5.3.1_F"},null,null,{"$f":"A155","v":"C_1.1_F"},{"$f":"A160","v":"C_2.1_F"},{"$f":"A167","v":"C_3.1_F"},{"$f":"A174","v":"C_4.1_F"},{"$f":"A179","v":"C_5.1_F"},null,null,"C_1_F","C_1_A"]
[null,null,null,null,null,"A VOIR AC CONSTRUCTION2",null,{"$f":"$A$189","v":"C_1.1.2_F"},{"$f":"F189","v":"ggf"},{"$f":"F190","v":"vcdq"},{"$f":"F191","v":"bge"},{"$f":"F192","v":"fdeé&"},{"$f":"F193","v":"nhtr"},{"$f":"F194","v":"gr"},null,null,{"$f":"$A$189","v":"C_1.1.2_F"},{"$f":"$A$225","v":"C_1.2.2_F"},{"$f":"$A$267","v":"C_1.3.2_F"},{"$f":"$A$285","v":"C_1.4.2_F"},{"$f":"$A$297","v":"C_2.1.2_F"},{"$f":"$A$309","v":"C_2.2.2_F"},{"$f":"$A$327","v":"C_2.3.2_F"},{"$f":"$A$345","v":"C_2.4.2_F"},{"$f":"$A$369","v":"C_2.5.2_F"},{"$f":"$A$399","v":"C_2.6.2_F"},{"$f":"$A$429","v":"C_3.1.2_F"},{"$f":"$A$513","v":"C_3.2.2_F"},null,{"$f":"$A$549","v":"C_3.4.2_F"},{"$f":"$A$585","v":"C_3.5.2_F"},null,{"$f":"$A$609","v":"C_4.1.2_F"},{"$f":"$A$645","v":"C_4.2.2_F"},{"$f":"$A$663","v":"C_4.3.2_F"},{"$f":"$A$717","v":"C_4.4.2_F"},{"$f":"$A$747","v":"C_5.1.2_F"},{"$f":"$A$759","v":"C_5.2.2_F"},{"$f":"$A$771","v":"C_5.3.2_F"},null,null,{"$f":"A156","v":"C_1.2_F"},{"$f":"A161","v":"C_2.2_F"},{"$f":"A168","v":"C_3.2_F"},{"$f":"A175","v":"C_4.2_F"},{"$f":"A180","v":"C_5.2_F"},null,null,"C_2_F","C_2_A"]
[null,null,null,null,null,"A VOIR AC CONSTRUCTION3",null,{"$f":"$A$195","v":"C_1.1.3_F"},{"$f":"F195","v":"A VOIR AC CONSTRUCTION7"},{"$f":"F196","v":"A VOIR AC CONSTRUCTION8"},{"$f":"F197","v":"A VOIR AC CONSTRUCTION9"},{"$f":"F198","v":"A VOIR AC CONSTRUCTION10"},{"$f":"F199","v":"A VOIR AC CONSTRUCTION11"},{"$f":"F200","v":"A VOIR AC CONSTRUCTION12"},null,null,{"$f":"$A$195","v":"C_1.1.3_F"},{"$f":"$A$231","v":"C_1.2.3_F"},{"$f":"$A$273","v":"C_1.3.3_F"},null,null,{"$f":"$A$315","v":"C_2.2.3_F"},{"$f":"$A$333","v":"C_2.3.3_F"},{"$f":"$A$351","v":"C_2.4.3_F"},{"$f":"$A$375","v":"C_2.5.3_F"},{"$f":"$A$405","v":"C_2.6.3_F"},{"$f":"$A$435","v":"C_3.1.3_F"},{"$f":"$A$519","v":"C_3.2.3_F"},null,{"$f":"$A$555","v":"C_3.4.3_F"},{"$f":"$A$591","v":"C_3.5.3_F"},null,{"$f":"$A$615","v":"C_4.1.3_F"},{"$f":"$A$651","v":"C_4.2.3_F"},{"$f":"$A$669","v":"C_4.3.3_F"},{"$f":"$A$723","v":"C_4.4.3_F"},null,null,null,null,null,"C_1.3_F","C_2.3_F","C_3.3_F","C_4.3_F","C_5.3_F",null,null,"C_3_F","C_3_A"]
[null,null,null,null,null,"A VOIR AC CONSTRUCTION4",null,{"$f":"$A$201","v":"C_1.1.4_F"},{"$f":"F201","v":"A VOIR AC CONSTRUCTION13"},{"$f":"F202","v":"A VOIR AC CONSTRUCTION14"},{"$f":"F203","v":"A VOIR AC CONSTRUCTION15"},{"$f":"F204","v":"A VOIR AC CONSTRUCTION16"},{"$f":"F205","v":"A VOIR AC CONSTRUCTION17"},{"$f":"F206","v":"A VOIR AC CONSTRUCTION18"},null,null,{"$f":"$A$201","v":"C_1.1.4_F"},{"$f":"$A$237","v":"C_1.2.4_F"},null,null,null,null,null,{"$f":"$A$357","v":"C_2.4.4_F"},{"$f":"$A$381","v":"C_2.5.4_F"},{"$f":"$A$411","v":"C_2.6.4_F"},{"$f":"$A$441","v":"C_3.1.4_F"},{"$f":"$A$525","v":"C_3.2.4_F"},null,{"$f":"$A$561","v":"C_3.4.4_F"},null,null,{"$f":"$A$621","v":"C_4.1.4_F"},null,{"$f":"$A$675","v":"C_4.3.4_F"},{"$f":"$A$729","v":"C_4.4.4_F"},null,null,null,null,null,"C_1.4_F","C_2.4_F","C_3.4_F","C_4.4_F",null,null,null,"C_4_F","C_4_A"]
[null,null,null,null,null,"A VOIR AC CONSTRUCTION5",null,{"$f":"$A$207","v":"C_1.1.5_F"},{"$f":"F207","v":"A VOIR AC CONSTRUCTION19"},{"$f":"F208","v":"A VOIR AC CONSTRUCTION20"},{"$f":"F209","v":"A VOIR AC CONSTRUCTION21"},{"$f":"F210","v":"A VOIR AC CONSTRUCTION22"},{"$f":"F211","v":"A VOIR AC CONSTRUCTION23"},{"$f":"F212","v":"A VOIR AC CONSTRUCTION24"},null,null,{"$f":"$A$207","v":"C_1.1.5_F"},{"$f":"$A$243","v":"C_1.2.5_F"},null,null,null,null,null,null,{"$f":"$A$387","v":"C_2.5.5_F"},{"$f":"$A$417","v":"C_2.6.5_F"},{"$f":"$A$447","v":"C_3.1.5_F"},{"$f":"$A$531","v":"C_3.2.5_F"},null,{"$f":"$A$567","v":"C_3.4.5_F"},null,null,{"$f":"$A$627","v":"C_4.1.5_F"},null,{"$f":"$A$681","v":"C_4.3.5_F"},{"$f":"$A$735","v":"C_4.4.5_F"},null,null,null,null,null,null,"C_2.5_F","C_3.5_F",null,null,null,null,"C_5_F","C_5_A"]
[null,null,null,null,null,"A VOIR AC CONSTRUCTION6",null,{"$f":"$A$213","v":"C_1.1.6_F"},{"$f":"F213","v":"A VOIR AC CONSTRUCTION25"},{"$f":"F214","v":"A VOIR AC CONSTRUCTION26"},{"$f":"F215","v":"A VOIR AC CONSTRUCTION27"},{"$f":"F216","v":"A VOIR AC CONSTRUCTION28"},{"$f":"F217","v":"A VOIR AC CONSTRUCTION29"},{"$f":"F218","v":"A VOIR AC CONSTRUCTION30"},null,null,{"$f":"$A$213","v":"C_1.1.6_F"},{"$f":"$A$249","v":"C_1.2.6_F"},null,null,null,null,null,null,null,null,{"$f":"$A$453","v":"C_3.1.6_F"},null,null,{"$f":"$A$573","v":"C_3.4.6_F"},null,null,{"$f":"$A$633","v":"C_4.1.6_F"},null,{"$f":"$A$687","v":"C_4.3.6_F"},null,null,null,null,null,null,null,"C_2.6_F","C_3.6_F",null,null,null,null,null,"C_6_A"]
["C_1.1.2_F","Localiser et interpréter les mouvements",null,null,null,"ggf",null,{"$f":"$A$219","v":"C_1.2.1_F"},{"$f":"F219","v":"Les étapes de production sont correctement définies:"},{"$f":"F220","v":"_ Les antériorités sont correctement définies"},{"$f":"F221","v":"_ Nature et organisation des moyens"},{"$f":"F222","v":"_ L'écoulement des flux est optimisé"},{"$f":"F223","v":"_ La chronologie des étapes est correctement justifiée"},{"$f":"F224","v":0},null,null,null,{"$f":"$A$255","v":"C_1.2.7_F"},null,null,null,null,null,null,null,null,{"$f":"$A$459","v":"C_3.1.7_F"},null,null,null,null,null,null,null,{"$f":"$A$693","v":"C_4.3.7_F"}]
[null,null,null,null,null,"vcdq",null,{"$f":"$A$225","v":"C_1.2.2_F"},{"$f":"F225","v":"L' identification des surfaces de références est correcte:"},{"$f":"F226","v":"_ MIP"},{"$f":"F227","v":"_ MAP"},{"$f":"F228","v":"La justification des surfaces de références est pertinante:"},{"$f":"F229","v":"_ géométrie relative"},{"$f":"F230","v":"_ Nombre de degrés de liberté"},null,null,null,null,null,null,null,null,null,null,null,null,{"$f":"$A$465","v":"C_3.1.8_F"},null,null,null,null,null,null,null,{"$f":"$A$699","v":"C_4.3.8_F"}]
[null,null,null,null,null,"bge",null,{"$f":"$A$231","v":"C_1.2.3_F"},{"$f":"F231","v":"L'état de transformation du produit est correctement reconnu:"},{"$f":"F232","v":"_ Phases exécutée (fiche de suivi)"},{"$f":"F233","v":"_ Phases restant à exécuter (fiche de suivi)"},{"$f":"F234","v":0},{"$f":"F235","v":0},{"$f":"F236","v":0},null,null,null,null,null,null,null,null,null,null,null,null,{"$f":"$A$471","v":"C_3.1.9_F"},null,null,null,null,null,null,null,{"$f":"$A$705","v":"C_4.3.9_F"}]
[null,null,null,null,null,"fdeé&",null,{"$f":"$A$237","v":"C_1.2.4_F"},{"$f":"F237","v":"Les machines nécessaires à la fabrication sont en adéquation avec les besoins:"},{"$f":"F238","v":"_ Choix des référentiels géométriques"},{"$f":"F239","v":"_ Nature des opérations"},{"$f":"F240","v":"Les outils nécessaires à la fabrication sont en adéquation avec les besoins:"},{"$f":"F241","v":"_ Caractéristiques de la partie active"},{"$f":"F242","v":"_ Cinématique de la coupe"},null,null,null,null,null,null,null,null,null,null,null,null,{"$f":"$A$477","v":"C_3.1.10_F"},null,null,null,null,null,null,null,null,null,null,null,null,null,null,null,null,null,null,null,null,"Tableau intermédiare pour liste déroutante avec variable","Technicien_de_Fabrication_Bois_et_Matériaux_Associés","AW",{"$f":"VLOOKUP('Fiche contrat type'!$A$11,AW192:AX193,2,FALSE)","v":"AW"}]
[null,null,null,null,null,"nhtr",null,{"$f":"$A$243","v":"C_1.2.5_F"},{"$f":"F243","v":"Les systèmes de transfert et/ou de manutention sont adaptés:"},{"$f":"F244","v":"_ Mouvement disponibles par rapport au bati"},{"$f":"F245","v":"_ Caractéristiques géométriques et dimentionnelles"},{"$f":"F246","v":"_ Caractéristiques de communication"},{"$f":"F247","v":0},{"$f":"F248","v":0},null,null,null,null,null,null,null,null,null,null,null,null,{"$f":"$A$483","v":"C_3.1.11_F"},null,null,null,null,null,null,null,null,null,null,null,null,null,null,null,null,null,null,null,null,null,"Technicien_Menuisier_Agenceur","AX"]
[null,null,null,null,null,"gr",null,{"$f":"$A$249","v":"C_1.2.6_F"},{"$f":"F249","v":"L'utilisation du montage est correctement justifié:"},{"$f":"F250","v":"_ Montrer l'intérêt du MU par rapport à la pièce et la machine"},{"$f":"F251","v":"La vérification de la disponibilité est correcte:"},{"$f":"F252","v":"_ Codification"},{"$f":"F253","v":"_ Gestion du stockage"},{"$f":"F254","v":0},null,null,null,null,null,null,null,null,null,null,null,null,{"$f":"$A$489","v":"C_3.1.12_F"}]
["C_1.1.3_F","Décrire et justifier une solution technique",null,null,null,"A VOIR AC CONSTRUCTION7",null,{"$f":"$A$255","v":"C_1.2.7_F"},{"$f":"F255","v":"La vérification permet de valider les choix techniques en adéquation avec la sécuruté des opérateurs:"},{"$f":"F256","v":"_ Identification des risques au niveau du poste (IPS , agencement du poste et gestion des outillages)"},{"$f":"F257","v":"_ Identification des risques au niveau des modes opératoires (prise en compte des contraintes de production, charges, cadences…)"},{"$f":"F258","v":"_ Identification des risques au niveau des moyens de production (vérification des essais et MU)"},{"$f":"F259","v":"_ Protection collective (EPC)"},{"$f":"F260","v":"_ Protection individuelle (EPI)"},null,null,null,null,null,null,null,null,null,null,null,null,{"$f":"$A$495","v":"C_3.1.13_F"}]
[null,null,null,null,null,"A VOIR AC CONSTRUCTION8",null,{"$f":"$A$261","v":"C_1.3.1_F"},{"$f":"F261","v":"Les temps prévisionnels du cycle sont repérés de manière exaustives/"},{"$f":"F262","v":"_ Antériorités"},{"$f":"F263","v":"_ Organisation des charges"},{"$f":"F264","v":"_ Durée du cycle et délais"},{"$f":"F265","v":0},{"$f":"F266","v":"_ Présentation simogramme"},null,null,null,null,null,null,null,null,null,null,null,null,{"$f":"$A$501","v":"C_3.1.14_F"}]
[null,null,null,null,null,"A VOIR AC CONSTRUCTION9",null,{"$f":"$A$267","v":"C_1.3.2_F"},{"$f":"F267","v":"Le repérage des coûts est exaustif"},{"$f":"F268","v":"La justification permet de révélé l'influence des temps sur les coûts:"},{"$f":"F269","v":"_ Délais"},{"$f":"F270","v":"_ Temps improductifs"},{"$f":"F271","v":"_ Calcul des quantités sérielles au plus juste"},{"$f":"F272","v":0}]
[null,null,null,null,null,"A VOIR AC CONSTRUCTION10",null,{"$f":"$A$273","v":"C_1.3.3_F"},{"$f":"F273","v":"L'analyse des éléments de gestion de l’approvisionnement est correcte:"},{"$f":"F274","v":"_ Vérification Nature et quantité"},{"$f":"F275","v":"_ Vérification qualité, composition"},{"$f":"F276","v":"_ Périodicité de l’approvisionnement"},{"$f":"F277","v":0},{"$f":"F278","v":0}]
[null,null,null,null,null,"A VOIR AC CONSTRUCTION11",null,{"$f":"$A$279","v":"C_1.4.1_F"},{"$f":"F279","v":"Les possibilités de  rationnalisation et l'optimisation sont cohérentes par rapport à l'objectif fixé:"},{"$f":"F280","v":"_ Au niveau des procédés (processus, organisation, contrôle…)"},{"$f":"F281","v":"_ Au niveau des matériels utlisés (machines, MU)"},{"$f":"F282","v":"_ Au niveau des outils utilisés"},{"$f":"F283","v":0},{"$f":"F284","v":0}]
[null,null,null,null,null,"A VOIR AC CONSTRUCTION12",null,{"$f":"$A$285","v":"C_1.4.2_F"},{"$f":"F285","v":"Les proposition d'amélioration sont pertinantes:"},{"$f":"F286","v":"_ Au regard du poste lui-même"},{"$f":"F287","v":"_ Au regard des poste amont et aval"},{"$f":"F288","v":"La justification prend en compte tous les éléments des propositions:"},{"$f":"F289","v":"_ Apports techniques et btechnologiques"},{"$f":"F290","v":"_ Les coûts de l'amélioration sont pris en compte"}]
["C_1.1.4_F","Identifier et interpréter les spécification géométriques, dimensionnelles, les états de surfaces.",null,null,null,"A VOIR AC CONSTRUCTION13",null,{"$f":"$A$291","v":"C_2.1.1_F"},{"$f":"F291","v":"Les étapes de production sont recensées de manière exaustives"},{"$f":"F292","v":"Les contraintes de production sont recensées de manière exaustives:"},{"$f":"F293","v":"_ Systèmes de fabrication, finition, manutention, montage, conditionnement correctement recensés"},{"$f":"F294","v":"_ Contraintes de temps (antériorités délais…) correctement recensés"},{"$f":"F295","v":"_ Coûts correctement recensés"},{"$f":"F296","v":"_ Qualité correctement recensés"}]
[null,null,null,null,null,"A VOIR AC CONSTRUCTION14",null,{"$f":"$A$297","v":"C_2.1.2_F"},{"$f":"F297","v":"Le matériel retenu respecte la capacité qui lui est imposée d'après la planification"},{"$f":"F298","v":"éval 1"},{"$f":"F299","v":"éval 2"},{"$f":"F300","v":"éval 3"},{"$f":"F301","v":"éval 4"},{"$f":"F302","v":"éval 5"}]
[null,null,null,null,null,"A VOIR AC CONSTRUCTION15",null,{"$f":"$A$303","v":"C_2.2.1_F"},{"$f":"F303","v":"éval 6"},{"$f":"F304","v":"éval 7"},{"$f":"F305","v":"éval 8"},{"$f":"F306","v":"éval 9"},{"$f":"F307","v":"éval 10"},{"$f":"F308","v":"éval 11"}]
[null,null,null,null,null,"A VOIR AC CONSTRUCTION16",null,{"$f":"$A$309","v":"C_2.2.2_F"},{"$f":"F309","v":"éval 12"},{"$f":"F310","v":"éval 13"},{"$f":"F311","v":"éval 14"},{"$f":"F312","v":"éval 15"},{"$f":"F313","v":"éval 16"},{"$f":"F314","v":"éval 17"}]
[null,null,null,null,null,"A VOIR AC CONSTRUCTION17",null,{"$f":"$A$315","v":"C_2.2.3_F"},{"$f":"F315","v":"éval 18"},{"$f":"F316","v":"éval 19"},{"$f":"F317","v":"éval 20"},{"$f":"F318","v":"éval 21"},{"$f":"F319","v":"éval 22"},{"$f":"F320","v":"éval 23"}]
[null,null,null,null,null,"A VOIR AC CONSTRUCTION18",null,{"$f":"$A$321","v":"C_2.3.1_F"},{"$f":"F321","v":"éval 24"},{"$f":"F322","v":"éval 25"},{"$f":"F323","v":"éval 26"},{"$f":"F324","v":"éval 27"},{"$f":"F325","v":"éval 28"},{"$f":"F326","v":"éval 29"}]
["C_1.1.5_F","Etablir des schémas, des croquis des solutions techniques",null,null,null,"A VOIR AC CONSTRUCTION19",null,{"$f":"$A$327","v":"C_2.3.2_F"},{"$f":"F327","v":"éval 30"},{"$f":"F328","v":"éval 31"},{"$f":"F329","v":"éval 32"},{"$f":"F330","v":"éval 33"},{"$f":"F331","v":"éval 34"},{"$f":"F332","v":"éval 35"}]
[null,null,null,null,null,"A VOIR AC CONSTRUCTION20",null,{"$f":"$A$333","v":"C_2.3.3_F"},{"$f":"F333","v":"éval 36"},{"$f":"F334","v":"éval 37"},{"$f":"F335","v":"éval 38"},{"$f":"F336","v":"éval 39"},{"$f":"F337","v":"éval 40"},{"$f":"F338","v":"éval 41"}]
[null,null,null,null,null,"A VOIR AC CONSTRUCTION21",null,{"$f":"$A$339","v":"C_2.4.1_F"},{"$f":"F339","v":"éval 42"},{"$f":"F340","v":"éval 43"},{"$f":"F341","v":"éval 44"},{"$f":"F342","v":"éval 45"},{"$f":"F343","v":"éval 46"},{"$f":"F344","v":"éval 47"}]
[null,null,null,null,null,"A VOIR AC CONSTRUCTION22",null,{"$f":"$A$345","v":"C_2.4.2_F"},{"$f":"F345","v":"éval 48"},{"$f":"F346","v":"éval 49"},{"$f":"F347","v":"éval 50"},{"$f":"F348","v":"éval 51"},{"$f":"F349","v":"éval 52"},{"$f":"F350","v":"éval 53"}]
[null,null,null,null,null,"A VOIR AC CONSTRUCTION23",null,{"$f":"$A$351","v":"C_2.4.3_F"},{"$f":"F351","v":"éval 54"},{"$f":"F352","v":"éval 55"},{"$f":"F353","v":"éval 56"},{"$f":"F354","v":"éval 57"},{"$f":"F355","v":"éval 58"},{"$f":"F356","v":"éval 59"}]
[null,null,null,null,null,"A VOIR AC CONSTRUCTION24",null,{"$f":"$A$357","v":"C_2.4.4_F"},{"$f":"F357","v":"éval 60"},{"$f":"F358","v":"éval 61"},{"$f":"F359","v":"éval 62"},{"$f":"F360","v":"éval 63"},{"$f":"F361","v":"éval 64"},{"$f":"F362","v":"éval 65"}]
["C_1.1.6_F","reconnaitre les spécifications des matériaux (carctéristiques dans une base de données ou sur un réseau)",null,null,null,"A VOIR AC CONSTRUCTION25",null,{"$f":"$A$363","v":"C_2.5.1_F"},{"$f":"F363","v":"éval 66"},{"$f":"F364","v":"éval 67"},{"$f":"F365","v":"éval 68"},{"$f":"F366","v":"éval 69"},{"$f":"F367","v":"éval 70"},{"$f":"F368","v":"éval 71"}]
[null,null,null,null,null,"A VOIR AC CONSTRUCTION26",null,{"$f":"$A$369","v":"C_2.5.2_F"},{"$f":"F369","v":"éval 72"},{"$f":"F370","v":"éval 73"},{"$f":"F371","v":"éval 74"},{"$f":"F372","v":"éval 75"},{"$f":"F373","v":"éval 76"},{"$f":"F374","v":"éval 77"}]
[null,null,null,null,null,"A VOIR AC CONSTRUCTION27",null,{"$f":"$A$375","v":"C_2.5.3_F"},{"$f":"F375","v":"éval 78"},{"$f":"F376","v":"éval 79"},{"$f":"F377","v":"éval 80"},{"$f":"F378","v":"éval 81"},{"$f":"F379","v":"éval 82"},{"$f":"F380","v":"éval 83"}]
[null,null,null,null,null,"A VOIR AC CONSTRUCTION28",null,{"$f":"$A$381","v":"C_2.5.4_F"},{"$f":"F381","v":"éval 84"},{"$f":"F382","v":"éval 85"},{"$f":"F383","v":"éval 86"},{"$f":"F384","v":"éval 87"},{"$f":"F385","v":"éval 88"},{"$f":"F386","v":"éval 89"}]
[null,null,null,null,null,"A VOIR AC CONSTRUCTION29",null,{"$f":"$A$387","v":"C_2.5.5_F"},{"$f":"F387","v":"éval 90"},{"$f":"F388","v":"éval 91"},{"$f":"F389","v":"éval 92"},{"$f":"F390","v":"éval 93"},{"$f":"F391","v":"éval 94"},{"$f":"F392","v":"éval 95"}]
[null,null,null,null,null,"A VOIR AC CONSTRUCTION30",null,{"$f":"$A$393","v":"C_2.6.1_F"},{"$f":"F393","v":"éval 96"},{"$f":"F394","v":"éval 97"},{"$f":"F395","v":"éval 98"},{"$f":"F396","v":"éval 99"},{"$f":"F397","v":"éval 100"},{"$f":"F398","v":"éval 101"}]
["C_1.2.1_F","Analyser et justifier la chronologie des étapes de production",null,null,null,"Les étapes de production sont correctement définies:",null,{"$f":"$A$399","v":"C_2.6.2_F"},{"$f":"F399","v":"éval 102"},{"$f":"F400","v":"éval 103"},{"$f":"F401","v":"éval 104"},{"$f":"F402","v":"éval 105"},{"$f":"F403","v":"éval 106"},{"$f":"F404","v":"éval 107"}]
[null,null,null,null,null,"_ Les antériorités sont correctement définies",null,{"$f":"$A$405","v":"C_2.6.3_F"},{"$f":"F405","v":"éval 108"},{"$f":"F406","v":"éval 109"},{"$f":"F407","v":"éval 110"},{"$f":"F408","v":"éval 111"},{"$f":"F409","v":"éval 112"},{"$f":"F410","v":"éval 113"}]
[null,null,null,null,null,"_ Nature et organisation des moyens",null,{"$f":"$A$411","v":"C_2.6.4_F"},{"$f":"F411","v":"éval 114"},{"$f":"F412","v":"éval 115"},{"$f":"F413","v":"éval 116"},{"$f":"F414","v":"éval 117"},{"$f":"F415","v":"éval 118"},{"$f":"F416","v":"éval 119"}]
[null,null,null,null,null,"_ L'écoulement des flux est optimisé",null,{"$f":"$A$417","v":"C_2.6.5_F"},{"$f":"F417","v":"éval 120"},{"$f":"F418","v":"éval 121"},{"$f":"F419","v":"éval 122"},{"$f":"F420","v":"éval 123"},{"$f":"F421","v":"éval 124"},{"$f":"F422","v":"éval 125"}]
[null,null,null,null,null,"_ La chronologie des étapes est correctement justifiée",null,{"$f":"$A$423","v":"C_3.1.1_F"},{"$f":"F423","v":"éval 126"},{"$f":"F424","v":"éval 127"},{"$f":"F425","v":"éval 128"},{"$f":"F426","v":"éval 129"},{"$f":"F427","v":"éval 130"},{"$f":"F428","v":"éval 131"}]
[null,null,null,null,null,null,null,{"$f":"$A$429","v":"C_3.1.2_F"},{"$f":"F429","v":"éval 132"},{"$f":"F430","v":"éval 133"},{"$f":"F431","v":"éval 134"},{"$f":"F432","v":"éval 135"},{"$f":"F433","v":"éval 136"},{"$f":"F434","v":"éval 137"}]
["C_1.2.2_F","Identifier et justifier les surfaces de références",null,null,null,"L' identification des surfaces de références est correcte:",null,{"$f":"$A$435","v":"C_3.1.3_F"},{"$f":"F435","v":"éval 138"},{"$f":"F436","v":"éval 139"},{"$f":"F437","v":"éval 140"},{"$f":"F438","v":"éval 141"},{"$f":"F439","v":"éval 142"},{"$f":"F440","v":"éval 143"}]
[null,null,null,null,null,"_ MIP",null,{"$f":"$A$441","v":"C_3.1.4_F"},{"$f":"F441","v":"éval 144"},{"$f":"F442","v":"éval 145"},{"$f":"F443","v":"éval 146"},{"$f":"F444","v":"éval 147"},{"$f":"F445","v":"éval 148"},{"$f":"F446","v":"éval 149"}]
[null,null,null,null,null,"_ MAP",null,{"$f":"$A$447","v":"C_3.1.5_F"},{"$f":"F447","v":"éval 150"},{"$f":"F448","v":"éval 151"},{"$f":"F449","v":"éval 152"},{"$f":"F450","v":"éval 153"},{"$f":"F451","v":"éval 154"},{"$f":"F452","v":"éval 155"}]
[null,null,null,null,null,"La justification des surfaces de références est pertinante:",null,{"$f":"$A$453","v":"C_3.1.6_F"},{"$f":"F453","v":"éval 156"},{"$f":"F454","v":"éval 157"},{"$f":"F455","v":"éval 158"},{"$f":"F456","v":"éval 159"},{"$f":"F457","v":"éval 160"},{"$f":"F458","v":"éval 161"}]
[null,null,null,null,null,"_ géométrie relative",null,{"$f":"$A$459","v":"C_3.1.7_F"},{"$f":"F459","v":"éval 162"},{"$f":"F460","v":"éval 163"},{"$f":"F461","v":"éval 164"},{"$f":"F462","v":"éval 165"},{"$f":"F463","v":"éval 166"},{"$f":"F464","v":"éval 167"}]
[null,null,null,null,null,"_ Nombre de degrés de liberté",null,{"$f":"$A$465","v":"C_3.1.8_F"},{"$f":"F465","v":"éval 168"},{"$f":"F466","v":"éval 169"},{"$f":"F467","v":"éval 170"},{"$f":"F468","v":"éval 171"},{"$f":"F469","v":"éval 172"},{"$f":"F470","v":"éval 173"}]
["C_1.2.3_F","Reconnaitre l'état de transformation du produit ( de la pièce)",null,null,null,"L'état de transformation du produit est correctement reconnu:",null,{"$f":"$A$471","v":"C_3.1.9_F"},{"$f":"F471","v":"éval 174"},{"$f":"F472","v":"éval 175"},{"$f":"F473","v":"éval 176"},{"$f":"F474","v":"éval 177"},{"$f":"F475","v":"éval 178"},{"$f":"F476","v":"éval 179"}]
[null,null,null,null,null,"_ Phases exécutée (fiche de suivi)",null,{"$f":"$A$477","v":"C_3.1.10_F"},{"$f":"F477","v":"éval 180"},{"$f":"F478","v":"éval 181"},{"$f":"F479","v":"éval 182"},{"$f":"F480","v":"éval 183"},{"$f":"F481","v":"éval 184"},{"$f":"F482","v":"éval 185"}]
[null,null,null,null,null,"_ Phases restant à exécuter (fiche de suivi)",null,{"$f":"$A$483","v":"C_3.1.11_F"},{"$f":"F483","v":"éval 186"},{"$f":"F484","v":"éval 187"},{"$f":"F485","v":"éval 188"},{"$f":"F486","v":"éval 189"},{"$f":"F487","v":"éval 190"},{"$f":"F488","v":"éval 191"}]
[null,null,null,null,null,null,null,{"$f":"$A$489","v":"C_3.1.12_F"},{"$f":"F489","v":"éval 192"},{"$f":"F490","v":"éval 193"},{"$f":"F491","v":"éval 194"},{"$f":"F492","v":"éval 195"},{"$f":"F493","v":"éval 196"},{"$f":"F494","v":"éval 197"}]
[null,null,null,null,null,null,null,{"$f":"$A$495","v":"C_3.1.13_F"},{"$f":"F495","v":"éval 198"},{"$f":"F496","v":"éval 199"},{"$f":"F497","v":"éval 200"},{"$f":"F498","v":"éval 201"},{"$f":"F499","v":"éval 202"},{"$f":"F500","v":"éval 203"}]
[null,null,null,null,null,null,null,{"$f":"$A$501","v":"C_3.1.14_F"},{"$f":"F501","v":"éval 204"},{"$f":"F502","v":"éval 205"},{"$f":"F503","v":"éval 206"},{"$f":"F504","v":"éval 207"},{"$f":"F505","v":"éval 208"},{"$f":"F506","v":"éval 209"}]
["C_1.2.4_F","Repérer les machines et les outils nécessaires à la fabrication",null,null,null,"Les machines nécessaires à la fabrication sont en adéquation avec les besoins:",null,{"$f":"$A$507","v":"C_3.2.1_F"},{"$f":"F507","v":"éval 210"},{"$f":"F508","v":"éval 211"},{"$f":"F509","v":"éval 212"},{"$f":"F510","v":"éval 213"},{"$f":"F511","v":"éval 214"},{"$f":"F512","v":"éval 215"}]
[null,null,null,null,null,"_ Choix des référentiels géométriques",null,{"$f":"$A$513","v":"C_3.2.2_F"},{"$f":"F513","v":"éval 216"},{"$f":"F514","v":"éval 217"},{"$f":"F515","v":"éval 218"},{"$f":"F516","v":"éval 219"},{"$f":"F517","v":"éval 220"},{"$f":"F518","v":"éval 221"}]
[null,null,null,null,null,"_ Nature des opérations",null,{"$f":"$A$519","v":"C_3.2.3_F"},{"$f":"F519","v":"éval 222"},{"$f":"F520","v":"éval 223"},{"$f":"F521","v":"éval 224"},{"$f":"F522","v":"éval 225"},{"$f":"F523","v":"éval 226"},{"$f":"F524","v":"éval 227"}]
[null,null,null,null,null,"Les outils nécessaires à la fabrication sont en adéquation avec les besoins:",null,{"$f":"$A$525","v":"C_3.2.4_F"},{"$f":"F525","v":"éval 228"},{"$f":"F526","v":"éval 229"},{"$f":"F527","v":"éval 230"},{"$f":"F528","v":"éval 231"},{"$f":"F529","v":"éval 232"},{"$f":"F530","v":"éval 233"}]
[null,null,null,null,null,"_ Caractéristiques de la partie active",null,{"$f":"$A$531","v":"C_3.2.5_F"},{"$f":"F531","v":"éval 234"},{"$f":"F532","v":"éval 235"},{"$f":"F533","v":"éval 236"},{"$f":"F534","v":"éval 237"},{"$f":"F535","v":"éval 238"},{"$f":"F536","v":"éval 239"}]
[null,null,null,null,null,"_ Cinématique de la coupe",null,{"$f":"$A$537","v":"C_3.3.1_F"},{"$f":"F537","v":"éval 240"},{"$f":"F538","v":"éval 241"},{"$f":"F539","v":"éval 242"},{"$f":"F540","v":"éval 243"},{"$f":"F541","v":"éval 244"},{"$f":"F542","v":"éval 245"}]
["C_1.2.5_F","Vérifier si les systèmes de transfert et/ou de manutention sont adaptés",null,null,null,"Les systèmes de transfert et/ou de manutention sont adaptés:",null,{"$f":"$A$543","v":"C_3.4.1_F"},{"$f":"F543","v":"éval 246"},{"$f":"F544","v":"éval 247"},{"$f":"F545","v":"éval 248"},{"$f":"F546","v":"éval 249"},{"$f":"F547","v":"éval 250"},{"$f":"F548","v":"éval 251"}]
[null,null,null,null,null,"_ Mouvement disponibles par rapport au bati",null,{"$f":"$A$549","v":"C_3.4.2_F"},{"$f":"F549","v":"éval 252"},{"$f":"F550","v":"éval 253"},{"$f":"F551","v":"éval 254"},{"$f":"F552","v":"éval 255"},{"$f":"F553","v":"éval 256"},{"$f":"F554","v":"éval 257"}]
[null,null,null,null,null,"_ Caractéristiques géométriques et dimentionnelles",null,{"$f":"$A$555","v":"C_3.4.3_F"},{"$f":"F555","v":"éval 258"},{"$f":"F556","v":"éval 259"},{"$f":"F557","v":"éval 260"},{"$f":"F558","v":"éval 261"},{"$f":"F559","v":"éval 262"},{"$f":"F560","v":"éval 263"}]
[null,null,null,null,null,"_ Caractéristiques de communication",null,{"$f":"$A$561","v":"C_3.4.4_F"},{"$f":"F561","v":"éval 264"},{"$f":"F562","v":"éval 265"},{"$f":"F563","v":"éval 266"},{"$f":"F564","v":"éval 267"},{"$f":"F565","v":"éval 268"},{"$f":"F566","v":"éval 269"}]
[null,null,null,null,null,null,null,{"$f":"$A$567","v":"C_3.4.5_F"},{"$f":"F567","v":"éval 270"},{"$f":"F568","v":"éval 271"},{"$f":"F569","v":"éval 272"},{"$f":"F570","v":"éval 273"},{"$f":"F571","v":"éval 274"},{"$f":"F572","v":"éval 275"}]
[null,null,null,null,null,null,null,{"$f":"$A$573","v":"C_3.4.6_F"},{"$f":"F573","v":"éval 276"},{"$f":"F574","v":"éval 277"},{"$f":"F575","v":"éval 278"},{"$f":"F576","v":"éval 279"},{"$f":"F577","v":"éval 280"},{"$f":"F578","v":"éval 281"}]
["C_1.2.6_F","Justifier l’utilisation d’un montage d’usinage et vérifier sa disponibilité.",null,null,null,"L'utilisation du montage est correctement justifié:",null,{"$f":"$A$579","v":"C_3.5.1_F"},{"$f":"F579","v":"éval 282"},{"$f":"F580","v":"éval 283"},{"$f":"F581","v":"éval 284"},{"$f":"F582","v":"éval 285"},{"$f":"F583","v":"éval 286"},{"$f":"F584","v":"éval 287"}]
[null,null,null,null,null,"_ Montrer l'intérêt du MU par rapport à la pièce et la machine",null,{"$f":"$A$585","v":"C_3.5.2_F"},{"$f":"F585","v":"éval 288"},{"$f":"F586","v":"éval 289"},{"$f":"F587","v":"éval 290"},{"$f":"F588","v":"éval 291"},{"$f":"F589","v":"éval 292"},{"$f":"F590","v":"éval 293"}]
[null,null,null,null,null,"La vérification de la disponibilité est correcte:",null,{"$f":"$A$591","v":"C_3.5.3_F"},{"$f":"F591","v":"éval 294"},{"$f":"F592","v":"éval 295"},{"$f":"F593","v":"éval 296"},{"$f":"F594","v":"éval 297"},{"$f":"F595","v":"éval 298"},{"$f":"F596","v":"éval 299"}]
[null,null,null,null,null,"_ Codification",null,{"$f":"$A$597","v":"C_3.6.1_F"},{"$f":"F597","v":"éval 300"},{"$f":"F598","v":"éval 301"},{"$f":"F599","v":"éval 302"},{"$f":"F600","v":"éval 303"},{"$f":"F601","v":"éval 304"},{"$f":"F602","v":"éval 305"}]
[null,null,null,null,null,"_ Gestion du stockage",null,{"$f":"$A$603","v":"C_4.1.1_F"},{"$f":"F603","v":"éval 306"},{"$f":"F604","v":"éval 307"},{"$f":"F605","v":"éval 308"},{"$f":"F606","v":"éval 309"},{"$f":"F607","v":"éval 310"},{"$f":"F608","v":"éval 311"}]
[null,null,null,null,null,null,null,{"$f":"$A$609","v":"C_4.1.2_F"},{"$f":"F609","v":"éval 312"},{"$f":"F610","v":"éval 313"},{"$f":"F611","v":"éval 314"},{"$f":"F612","v":"éval 315"},{"$f":"+F613","v":"éval 316"},{"$f":"+F614","v":"éval 317"}]
["C_1.2.7_F","Vérifier si les opérations de fabrication peuvent être réalisées dans le respect des conditions de sécurité pour les opérateurs.",null,null,null,"La vérification permet de valider les choix techniques en adéquation avec la sécuruté des opérateurs:",null,{"$f":"$A$615","v":"C_4.1.3_F"},{"$f":"F615","v":"éval 318"},{"$f":"F616","v":"éval 319"},{"$f":"F617","v":"éval 320"},{"$f":"F618","v":"éval 321"},{"$f":"F619","v":"éval 322"},{"$f":"F620","v":"éval 323"}]
[null,null,null,null,null,"_ Identification des risques au niveau du poste (IPS , agencement du poste et gestion des outillages)",null,{"$f":"$A$621","v":"C_4.1.4_F"},{"$f":"F621","v":"éval 324"},{"$f":"F622","v":"éval 325"},{"$f":"F623","v":"éval 326"},{"$f":"F624","v":"éval 327"},{"$f":"F625","v":"éval 328"},{"$f":"F626","v":"éval 329"}]
[null,null,null,null,null,"_ Identification des risques au niveau des modes opératoires (prise en compte des contraintes de production, charges, cadences…)",null,{"$f":"$A$627","v":"C_4.1.5_F"},{"$f":"F627","v":"éval 330"},{"$f":"F628","v":"éval 331"},{"$f":"F629","v":"éval 332"},{"$f":"F630","v":"éval 333"},{"$f":"F631","v":"éval 334"},{"$f":"F632","v":"éval 335"}]
[null,null,null,null,null,"_ Identification des risques au niveau des moyens de production (vérification des essais et MU)",null,{"$f":"$A$633","v":"C_4.1.6_F"},{"$f":"F633","v":"éval 336"},{"$f":"F634","v":"éval 337"},{"$f":"F635","v":"éval 338"},{"$f":"F636","v":"éval 339"},{"$f":"F637","v":"éval 340"},{"$f":"F638","v":"éval 341"}]
[null,null,null,null,null,"_ Protection collective (EPC)",null,{"$f":"$A$639","v":"C_4.2.1_F"},{"$f":"F639","v":"éval 342"},{"$f":"F640","v":"éval 343"},{"$f":"F641","v":"éval 344"},{"$f":"F642","v":"éval 345"},{"$f":"F643","v":"éval 346"},{"$f":"F644","v":"éval 347"}]
[null,null,null,null,null,"_ Protection individuelle (EPI)",null,{"$f":"$A$645","v":"C_4.2.2_F"},{"$f":"F645","v":"éval 348"},{"$f":"F646","v":"éval 349"},{"$f":"F647","v":"éval 350"},{"$f":"F648","v":"éval 351"},{"$f":"F649","v":"éval 352"},{"$f":"F650","v":"éval 353"}]
["C_1.3.1_F","Analyser et identifier les différents temps prévisionnels du cycle de production.",null,null,null,"Les temps prévisionnels du cycle sont repérés de manière exaustives/",null,{"$f":"$A$651","v":"C_4.2.3_F"},{"$f":"F651","v":"éval 354"},{"$f":"F652","v":"éval 355"},{"$f":"F653","v":"éval 356"},{"$f":"F654","v":"éval 357"},{"$f":"F655","v":"éval 358"},{"$f":"F656","v":"éval 359"}]
[null,null,null,null,null,"_ Antériorités",null,{"$f":"$A$657","v":"C_4.3.1_F"},{"$f":"F657","v":"éval 360"},{"$f":"F658","v":"éval 361"},{"$f":"F659","v":"éval 362"},{"$f":"F660","v":"éval 363"},{"$f":"F661","v":"éval 364"},{"$f":"F662","v":"éval 365"}]
[null,null,null,null,null,"_ Organisation des charges",null,{"$f":"$A$663","v":"C_4.3.2_F"},{"$f":"F663","v":"éval 366"},{"$f":"F664","v":"éval 367"},{"$f":"F665","v":"éval 368"},{"$f":"F666","v":"éval 369"},{"$f":"F667","v":"éval 370"},{"$f":"F668","v":"éval 371"}]
[null,null,null,null,null,"_ Durée du cycle et délais",null,{"$f":"$A$669","v":"C_4.3.3_F"},{"$f":"F669","v":"éval 372"},{"$f":"F670","v":"éval 373"},{"$f":"F671","v":"éval 374"},{"$f":"F672","v":"éval 375"},{"$f":"F673","v":"éval 376"},{"$f":"F674","v":"éval 377"}]
[null,null,null,null,null,null,null,{"$f":"$A$675","v":"C_4.3.4_F"},{"$f":"F675","v":"éval 378"},{"$f":"F676","v":"éval 379"},{"$f":"F677","v":"éval 380"},{"$f":"F678","v":"éval 381"},{"$f":"F679","v":"éval 382"},{"$f":"F680","v":"éval 383"}]
[null,null,null,null,null,"_ Présentation simogramme",null,{"$f":"$A$681","v":"C_4.3.5_F"},{"$f":"F681","v":"éval 384"},{"$f":"F682","v":"éval 385"},{"$f":"F683","v":"éval 386"},{"$f":"F684","v":"éval 387"},{"$f":"F685","v":"éval 388"},{"$f":"F686","v":"éval 389"}]
["C_1.3.2_F","Analyser et justifier les éléments de coût relatifs aux indicateurs de production. (délais, temps, quantités de production...).",null,null,null,"Le repérage des coûts est exaustif",null,{"$f":"$A$687","v":"C_4.3.6_F"},{"$f":"F687","v":"éval 390"},{"$f":"F688","v":"éval 391"},{"$f":"F689","v":"éval 392"},{"$f":"F690","v":"éval 393"},{"$f":"F691","v":"éval 394"},{"$f":"F692","v":"éval 395"}]
[null,null,null,null,null,"La justification permet de révélé l'influence des temps sur les coûts:",null,{"$f":"$A$693","v":"C_4.3.7_F"},{"$f":"F693","v":"éval 396"},{"$f":"F694","v":"éval 397"},{"$f":"F695","v":"éval 398"},{"$f":"F696","v":"éval 399"},{"$f":"F697","v":"éval 400"},{"$f":"F698","v":"éval 401"}]
[null,null,null,null,null,"_ Délais",null,{"$f":"$A$699","v":"C_4.3.8_F"},{"$f":"F699","v":"éval 402"},{"$f":"F700","v":"éval 403"},{"$f":"F701","v":"éval 404"},{"$f":"F702","v":"éval 405"},{"$f":"F703","v":"éval 406"},{"$f":"F704","v":"éval 407"}]
[null,null,null,null,null,"_ Temps improductifs",null,{"$f":"$A$705","v":"C_4.3.9_F"},{"$f":"F705","v":"éval 408"},{"$f":"F706","v":"éval 409"},{"$f":"F707","v":"éval 410"},{"$f":"F708","v":"éval 411"},{"$f":"F709","v":"éval 412"},{"$f":"F710","v":"éval 413"}]
[null,null,null,null,null,"_ Calcul des quantités sérielles au plus juste",null,{"$f":"$A$711","v":"C_4.4.1_F"},{"$f":"F711","v":"éval 414"},{"$f":"F712","v":"éval 415"},{"$f":"F713","v":"éval 416"},{"$f":"F714","v":"éval 417"},{"$f":"F715","v":"éval 418"},{"$f":"F716","v":"éval 419"}]
[null,null,null,null,null,null,null,{"$f":"$A$717","v":"C_4.4.2_F"},{"$f":"F717","v":"éval 420"},{"$f":"F718","v":"éval 421"},{"$f":"F719","v":"éval 422"},{"$f":"F720","v":"éval 423"},{"$f":"F721","v":"éval 424"},{"$f":"F722","v":"éval 425"}]
["C_1.3.3_F","Analyser les éléments de gestion de l’approvisionnement",null,null,null,"L'analyse des éléments de gestion de l’approvisionnement est correcte:",null,{"$f":"$A$723","v":"C_4.4.3_F"},{"$f":"F723","v":"éval 426"},{"$f":"F724","v":"éval 427"},{"$f":"F725","v":"éval 428"},{"$f":"F726","v":"éval 429"},{"$f":"F727","v":"éval 430"},{"$f":"F728","v":"éval 431"}]
[null,null,null,null,null,"_ Vérification Nature et quantité",null,{"$f":"$A$729","v":"C_4.4.4_F"},{"$f":"F729","v":"éval 432"},{"$f":"F730","v":"éval 433"},{"$f":"F731","v":"éval 434"},{"$f":"F732","v":"éval 435"},{"$f":"F733","v":"éval 436"},{"$f":"F734","v":"éval 437"}]
[null,null,null,null,null,"_ Vérification qualité, composition",null,{"$f":"$A$735","v":"C_4.4.5_F"},{"$f":"F735","v":"éval 438"},{"$f":"F736","v":"éval 439"},{"$f":"F737","v":"éval 440"},{"$f":"F738","v":"éval 441"},{"$f":"F739","v":"éval 442"},{"$f":"F740","v":"éval 443"}]
[null,null,null,null,null,"_ Périodicité de l’approvisionnement",null,{"$f":"$A$741","v":"C_5.1.1_F"},{"$f":"F741","v":"éval 444"},{"$f":"F742","v":"éval 445"},{"$f":"F743","v":"éval 446"},{"$f":"F744","v":"éval 447"},{"$f":"F745","v":"éval 448"},{"$f":"F746","v":"éval 449"}]
[null,null,null,null,null,null,null,{"$f":"$A$747","v":"C_5.1.2_F"},{"$f":"F747","v":"éval 450"},{"$f":"F748","v":"éval 451"},{"$f":"F749","v":"éval 452"},{"$f":"F750","v":"éval 453"},{"$f":"F751","v":"éval 454"},{"$f":"F752","v":"éval 455"}]
[null,null,null,null,null,null,null,{"$f":"$A$753","v":"C_5.2.1_F"},{"$f":"F753","v":"éval 456"},{"$f":"F754","v":"éval 457"},{"$f":"F755","v":"éval 458"},{"$f":"F756","v":"éval 459"},{"$f":"F757","v":"éval 460"},{"$f":"F758","v":"éval 461"}]
["C_1.4.1_F","Identifier des possibilités de rationalisation et d’optimisation relatives aux procédés, matériels et outils utilisés.",null,null,null,"Les possibilités de  rationnalisation et l'optimisation sont cohérentes par rapport à l'objectif fixé:",null,{"$f":"$A$759","v":"C_5.2.2_F"},{"$f":"F759","v":"éval 462"},{"$f":"F760","v":"éval 463"},{"$f":"F761","v":"éval 464"},{"$f":"F762","v":"éval 465"},{"$f":"F763","v":"éval 466"},{"$f":"F764","v":"éval 467"}]
[null,null,null,null,null,"_ Au niveau des procédés (processus, organisation, contrôle…)",null,{"$f":"$A$765","v":"C_5.3.1_F"},{"$f":"F765","v":"éval 468"},{"$f":"F766","v":"éval 469"},{"$f":"F767","v":"éval 470"},{"$f":"F768","v":"éval 471"},{"$f":"F769","v":"éval 472"},{"$f":"F770","v":"éval 473"}]
[null,null,null,null,null,"_ Au niveau des matériels utlisés (machines, MU)",null,{"$f":"$A$771","v":"C_5.3.2_F"},{"$f":"F771","v":"éval 474"},{"$f":"F772","v":"éval 475"},{"$f":"F773","v":"éval 476"},{"$f":"F774","v":"éval 477"},{"$f":"F775","v":"éval 478"},{"$f":"F776","v":"éval 479"}]
[null,null,null,null,null,"_ Au niveau des outils utilisés"]
[]
[]
["C_1.4.2_F","Proposer  et justifier des possibilités d'améliorations sur les postes de travail et leur environnement",null,null,null,"Les proposition d'amélioration sont pertinantes:"]
[null,null,null,null,null,"_ Au regard du poste lui-même"]
[null,null,null,null,null,"_ Au regard des poste amont et aval"]
[null,null,null,null,null,"La justification prend en compte tous les éléments des propositions:"]
[null,null,null,null,null,"_ Apports techniques et btechnologiques"]
[null,null,null,null,null,"_ Les coûts de l'amélioration sont pris en compte"]
["C_2.1.1_F","Recenser les étapes et les contraintes de production.",null,null,null,"Les étapes de production sont recensées de manière exaustives"]
[null,null,null,null,null,"Les contraintes de production sont recensées de manière exaustives:"]
[null,null,null,null,null,"_ Systèmes de fabrication, finition, manutention, montage, conditionnement correctement recensés"]
[null,null,null,null,null,"_ Contraintes de temps (antériorités délais…) correctement recensés"]
[null,null,null,null,null,"_ Coûts correctement recensés"]
[null,null,null,null,null,"_ Qualité correctement recensés"]
["C_2.1.2_F","Choisir un matériel en fonction des taux de charge.",null,null,null,"Le matériel retenu respecte la capacité qui lui est imposée d'après la planification"]
[null,null,null,null,null,"éval 1"]
[null,null,null,null,null,"éval 2"]
[null,null,null,null,null,"éval 3"]
[null,null,null,null,null,"éval 4"]
[null,null,null,null,null,"éval 5"]
["C_2.2.1_F","Établir le mode opératoire :                    de montage,                       de contrôle,                   de finition,                           de conditionnement.",null,null,null,"éval 6"]
[null,null,null,null,null,"éval 7"]
[null,null,null,null,null,"éval 8"]
[null,null,null,null,null,"éval 9"]
[null,null,null,null,null,"éval 10"]
[null,null,null,null,null,"éval 11"]
["C_2.2.2_F","Définir, pour chaque mode opératoire, la nature, l’ordre chronologique des opérations, et les moyens matériels. ",null,null,null,"éval 12"]
[null,null,null,null,null,"éval 13"]
[null,null,null,null,null,"éval 14"]
[null,null,null,null,null,"éval 15"]
[null,null,null,null,null,"éval 16"]
[null,null,null,null,null,"éval 17"]
["C_2.2.3_F","Définir les moyens humains.",null,null,null,"éval 18"]
[null,null,null,null,null,"éval 19"]
[null,null,null,null,null,"éval 20"]
[null,null,null,null,null,"éval 21"]
[null,null,null,null,null,"éval 22"]
[null,null,null,null,null,"éval 23"]
["C_2.3.1_F","Établir une gamme d’usinage, une planification, un contrat de phase…",null,null,null,"éval 24"]
[null,null,null,null,null,"éval 25"]
[null,null,null,null,null,"éval 26"]
[null,null,null,null,null,"éval 27"]
[null,null,null,null,null,"éval 28"]
[null,null,null,null,null,"éval 29"]
["C_2.3.2_F","Élaborer une fiche de débit.",null,null,null,"éval 30"]
[null,null,null,null,null,"éval 31"]
[null,null,null,null,null,"éval 32"]
[null,null,null,null,null,"éval 33"]
[null,null,null,null,null,"éval 34"]
[null,null,null,null,null,"éval 35"]
["C_2.3.3_F","Proposer des solutions pour optimiser les coûts, les processus, le rendement matière…",null,null,null,"éval 36"]
[null,null,null,null,null,"éval 37"]
[null,null,null,null,null,"éval 38"]
[null,null,null,null,null,"éval 39"]
[null,null,null,null,null,"éval 40"]
[null,null,null,null,null,"éval 41"]
["C_2.4.1_F","Lister et quantifier les matériaux, composants, accessoires.",null,null,null,"éval 42"]
[null,null,null,null,null,"éval 43"]
[null,null,null,null,null,"éval 44"]
[null,null,null,null,null,"éval 45"]
[null,null,null,null,null,"éval 46"]
[null,null,null,null,null,"éval 47"]
["C_2.4.2_F","Regrouper les composants par famille, processus, formes, matériaux…",null,null,null,"éval 48"]
[null,null,null,null,null,"éval 49"]
[null,null,null,null,null,"éval 50"]
[null,null,null,null,null,"éval 51"]
[null,null,null,null,null,"éval 52"]
[null,null,null,null,null,"éval 53"]
["C_2.4.3_F","Optimiser le rendement matière en fonction :                       - des dimensions commerciales                             - de l’état des stocks",null,null,null,"éval 54"]
[null,null,null,null,null,"éval 55"]
[null,null,null,null,null,"éval 56"]
[null,null,null,null,null,"éval 57"]
[null,null,null,null,null,"éval 58"]
[null,null,null,null,null,"éval 59"]
["C_2.4.4_F","Renseigner le document de suivi de fabrication :                     - les quantités matières                            - les consommables                         - les temps passés",null,null,null,"éval 60"]
[null,null,null,null,null,"éval 61"]
[null,null,null,null,null,"éval 62"]
[null,null,null,null,null,"éval 63"]
[null,null,null,null,null,"éval 64"]
[null,null,null,null,null,"éval 65"]
["C_2.5.1_F","Renseigner les variables dimensionnelles.",null,null,null,"éval 66"]
[null,null,null,null,null,"éval 67"]
[null,null,null,null,null,"éval 68"]
[null,null,null,null,null,"éval 69"]
[null,null,null,null,null,"éval 70"]
[null,null,null,null,null,"éval 71"]
["C_2.5.2_F","Identifier les référentiels. (Prise Origine Machine, Prise RÉFérence, DÉCalage).",null,null,null,"éval 72"]
[null,null,null,null,null,"éval 73"]
[null,null,null,null,null,"éval 74"]
[null,null,null,null,null,"éval 75"]
[null,null,null,null,null,"éval 76"]
[null,null,null,null,null,"éval 77"]
["C_2.5.3_F","Générer le programme.",null,null,null,"éval 78"]
[null,null,null,null,null,"éval 79"]
[null,null,null,null,null,"éval 80"]
[null,null,null,null,null,"éval 81"]
[null,null,null,null,null,"éval 82"]
[null,null,null,null,null,"éval 83"]
["C_2.5.4_F","Valider par simulation graphique.",null,null,null,"éval 84"]
[null,null,null,null,null,"éval 85"]
[null,null,null,null,null,"éval 86"]
[null,null,null,null,null,"éval 87"]
[null,null,null,null,null,"éval 88"]
[null,null,null,null,null,"éval 89"]
["C_2.5.5_F","Éditer ou afficher les fiches outils si nécessaire.",null,null,null,"éval 90"]
[null,null,null,null,null,"éval 91"]
[null,null,null,null,null,"éval 92"]
[null,null,null,null,null,"éval 93"]
[null,null,null,null,null,"éval 94"]
[null,null,null,null,null,"éval 95"]
["C_2.6.1_F","Choisir les outils en rapport avec les usinages attendus.",null,null,null,"éval 96"]
[null,null,null,null,null,"éval 97"]
[null,null,null,null,null,"éval 98"]
[null,null,null,null,null,"éval 99"]
[null,null,null,null,null,"éval 100"]
[null,null,null,null,null,"éval 101"]
["C_2.6.2_F","Effectuer les réglages externes.",null,null,null,"éval 102"]
[null,null,null,null,null,"éval 103"]
[null,null,null,null,null,"éval 104"]
[null,null,null,null,null,"éval 105"]
[null,null,null,null,null,"éval 106"]
[null,null,null,null,null,"éval 107"]
["C_2.6.3_F","Déterminer et Mesurer les jauges outils.",null,null,null,"éval 108"]
[null,null,null,null,null,"éval 109"]
[null,null,null,null,null,"éval 110"]
[null,null,null,null,null,"éval 111"]
[null,null,null,null,null,"éval 112"]
[null,null,null,null,null,"éval 113"]
["C_2.6.4_F","Vérifier la disponibilité de l’appareillage spécifique (montage d’usinage…).",null,null,null,"éval 114"]
[null,null,null,null,null,"éval 115"]
[null,null,null,null,null,"éval 116"]
[null,null,null,null,null,"éval 117"]
[null,null,null,null,null,"éval 118"]
[null,null,null,null,null,"éval 119"]
["C_2.6.5_F","Préparer l’appareillage spécifique (montage d’usinage…).",null,null,null,"éval 120"]
[null,null,null,null,null,"éval 121"]
[null,null,null,null,null,"éval 122"]
[null,null,null,null,null,"éval 123"]
[null,null,null,null,null,"éval 124"]
[null,null,null,null,null,"éval 125"]
["C_3.1.1_F","Introduire les programmes ou paramètres en mémoire.",null,null,null,"éval 126"]
[null,null,null,null,null,"éval 127"]
[null,null,null,null,null,"éval 128"]
[null,null,null,null,null,"éval 129"]
[null,null,null,null,null,"éval 130"]
[null,null,null,null,null,"éval 131"]
["C_3.1.2_F","Régler et monter les outils entre-eux.",null,null,null,"éval 132"]
[null,null,null,null,null,"éval 133"]
[null,null,null,null,null,"éval 134"]
[null,null,null,null,null,"éval 135"]
[null,null,null,null,null,"éval 136"]
[null,null,null,null,null,"éval 137"]
["C_3.1.3_F","Mettre en position les outils sur les broches, fourreaux, sur les têtes multibroches ou magasins d’outils.",null,null,null,"éval 138"]
[null,null,null,null,null,"éval 139"]
[null,null,null,null,null,"éval 140"]
[null,null,null,null,null,"éval 141"]
[null,null,null,null,null,"éval 142"]
[null,null,null,null,null,"éval 143"]
["C_3.1.4_F","Introduire les jauges outils.",null,null,null,"éval 144"]
[null,null,null,null,null,"éval 145"]
[null,null,null,null,null,"éval 146"]
[null,null,null,null,null,"éval 147"]
[null,null,null,null,null,"éval 148"]
[null,null,null,null,null,"éval 149"]
["C_3.1.5_F","Régler les référentiels machine ou Prendre les références machines (PREF), décalage d’origine…",null,null,null,"éval 150"]
[null,null,null,null,null,"éval 151"]
[null,null,null,null,null,"éval 152"]
[null,null,null,null,null,"éval 153"]
[null,null,null,null,null,"éval 154"]
[null,null,null,null,null,"éval 155"]
["C_3.1.6_F","Fabriquer ou modifier les montages d’usinage.",null,null,null,"éval 156"]
[null,null,null,null,null,"éval 157"]
[null,null,null,null,null,"éval 158"]
[null,null,null,null,null,"éval 159"]
[null,null,null,null,null,"éval 160"]
[null,null,null,null,null,"éval 161"]
["C_3.1.7_F","Installer et régler les montages d’usinage.",null,null,null,"éval 162"]
[null,null,null,null,null,"éval 163"]
[null,null,null,null,null,"éval 164"]
[null,null,null,null,null,"éval 165"]
[null,null,null,null,null,"éval 166"]
[null,null,null,null,null,"éval 167"]
["C_3.1.8_F","Installer et régler les dispositifs d’amenage, les systèmes de transfert et d’approvisionnement.",null,null,null,"éval 168"]
[null,null,null,null,null,"éval 169"]
[null,null,null,null,null,"éval 170"]
[null,null,null,null,null,"éval 171"]
[null,null,null,null,null,"éval 172"]
[null,null,null,null,null,"éval 173"]
["C_3.1.9_F","Installer et régler les dispositifs de sécurité.",null,null,null,"éval 174"]
[null,null,null,null,null,"éval 175"]
[null,null,null,null,null,"éval 176"]
[null,null,null,null,null,"éval 177"]
[null,null,null,null,null,"éval 178"]
[null,null,null,null,null,"éval 179"]
["C_3.1.10_F","Tester le cycle d’usinage.",null,null,null,"éval 180"]
[null,null,null,null,null,"éval 181"]
[null,null,null,null,null,"éval 182"]
[null,null,null,null,null,"éval 183"]
[null,null,null,null,null,"éval 184"]
[null,null,null,null,null,"éval 185"]
["C_3.1.11_F","Vérifier la conformité du réglage.",null,null,null,"éval 186"]
[null,null,null,null,null,"éval 187"]
[null,null,null,null,null,"éval 188"]
[null,null,null,null,null,"éval 189"]
[null,null,null,null,null,"éval 190"]
[null,null,null,null,null,"éval 191"]
["C_3.1.12_F","Apporter si nécessaire les modifications.",null,null,null,"éval 192"]
[null,null,null,null,null,"éval 193"]
[null,null,null,null,null,"éval 194"]
[null,null,null,null,null,"éval 195"]
[null,null,null,null,null,"éval 196"]
[null,null,null,null,null,"éval 197"]
["C_3.1.13_F","Réaliser les opérations d’usinage.",null,null,null,"éval 198"]
[null,null,null,null,null,"éval 199"]
[null,null,null,null,null,"éval 200"]
[null,null,null,null,null,"éval 201"]
[null,null,null,null,null,"éval 202"]
[null,null,null,null,null,"éval 203"]
["C_3.1.14_F","Vérifier la concordance des résultats avec les spécifications fournies.",null,null,null,"éval 204"]
[null,null,null,null,null,"éval 205"]
[null,null,null,null,null,"éval 206"]
[null,null,null,null,null,"éval 207"]
[null,null,null,null,null,"éval 208"]
[null,null,null,null,null,"éval 209"]
["C_3.2.1_F","Régler et organiser les moyens de montage.",null,null,null,"éval 210"]
[null,null,null,null,null,"éval 211"]
[null,null,null,null,null,"éval 212"]
[null,null,null,null,null,"éval 213"]
[null,null,null,null,null,"éval 214"]
[null,null,null,null,null,"éval 215"]
["C_3.2.2_F","Installer les dispositifs de sécurité.",null,null,null,"éval 216"]
[null,null,null,null,null,"éval 217"]
[null,null,null,null,null,"éval 218"]
[null,null,null,null,null,"éval 219"]
[null,null,null,null,null,"éval 220"]
[null,null,null,null,null,"éval 221"]
["C_3.2.3_F","Assurer l’approvisionnement des composants.",null,null,null,"éval 222"]
[null,null,null,null,null,"éval 223"]
[null,null,null,null,null,"éval 224"]
[null,null,null,null,null,"éval 225"]
[null,null,null,null,null,"éval 226"]
[null,null,null,null,null,"éval 227"]
["C_3.2.4_F","Effectuer les opérations de montage.",null,null,null,"éval 228"]
[null,null,null,null,null,"éval 229"]
[null,null,null,null,null,"éval 230"]
[null,null,null,null,null,"éval 231"]
[null,null,null,null,null,"éval 232"]
[null,null,null,null,null,"éval 233"]
["C_3.2.5_F","Vérifier la conformité du produit.",null,null,null,"éval 234"]
[null,null,null,null,null,"éval 235"]
[null,null,null,null,null,"éval 236"]
[null,null,null,null,null,"éval 237"]
[null,null,null,null,null,"éval 238"]
[null,null,null,null,null,"éval 239"]
["C_3.3.1_F","Réaliser les opérations courantes de finition.",null,null,null,"éval 240"]
[null,null,null,null,null,"éval 241"]
[null,null,null,null,null,"éval 242"]
[null,null,null,null,null,"éval 243"]
[null,null,null,null,null,"éval 244"]
[null,null,null,null,null,"éval 245"]
["C_3.4.1_F","Organiser le poste et les moyens de contrôle.",null,null,null,"éval 246"]
[null,null,null,null,null,"éval 247"]
[null,null,null,null,null,"éval 248"]
[null,null,null,null,null,"éval 249"]
[null,null,null,null,null,"éval 250"]
[null,null,null,null,null,"éval 251"]
["C_3.4.2_F","Réaliser les mesurages.",null,null,null,"éval 252"]
[null,null,null,null,null,"éval 253"]
[null,null,null,null,null,"éval 254"]
[null,null,null,null,null,"éval 255"]
[null,null,null,null,null,"éval 256"]
[null,null,null,null,null,"éval 257"]
["C_3.4.3_F","Saisir les résultats.",null,null,null,"éval 258"]
[null,null,null,null,null,"éval 259"]
[null,null,null,null,null,"éval 260"]
[null,null,null,null,null,"éval 261"]
[null,null,null,null,null,"éval 262"]
[null,null,null,null,null,"éval 263"]
["C_3.4.4_F","Effectuer les traitements.",null,null,null,"éval 264"]
[null,null,null,null,null,"éval 265"]
[null,null,null,null,null,"éval 266"]
[null,null,null,null,null,"éval 267"]
[null,null,null,null,null,"éval 268"]
[null,null,null,null,null,"éval 269"]
["C_3.4.5_F","Décider de l’acceptation du produit, de sa retouche ou de son rejet.",null,null,null,"éval 270"]
[null,null,null,null,null,"éval 271"]
[null,null,null,null,null,"éval 272"]
[null,null,null,null,null,"éval 273"]
[null,null,null,null,null,"éval 274"]
[null,null,null,null,null,"éval 275"]
["C_3.4.6_F","Vérifier et ajuster les quantités.",null,null,null,"éval 276"]
[null,null,null,null,null,"éval 277"]
[null,null,null,null,null,"éval 278"]
[null,null,null,null,null,"éval 279"]
[null,null,null,null,null,"éval 280"]
[null,null,null,null,null,"éval 281"]
["C_3.5.1_F","Mesurer les écarts de temps par rapport au prévisionnel.",null,null,null,"éval 282"]
[null,null,null,null,null,"éval 283"]
[null,null,null,null,null,"éval 284"]
[null,null,null,null,null,"éval 285"]
[null,null,null,null,null,"éval 286"]
[null,null,null,null,null,"éval 287"]
["C_3.5.2_F","Compléter les documents de suivi.",null,null,null,"éval 288"]
[null,null,null,null,null,"éval 289"]
[null,null,null,null,null,"éval 290"]
[null,null,null,null,null,"éval 291"]
[null,null,null,null,null,"éval 292"]
[null,null,null,null,null,"éval 293"]
["C_3.5.3_F","Proposer des mesures d’ajustement.",null,null,null,"éval 294"]
[null,null,null,null,null,"éval 295"]
[null,null,null,null,null,"éval 296"]
[null,null,null,null,null,"éval 297"]
[null,null,null,null,null,"éval 298"]
[null,null,null,null,null,"éval 299"]
["C_3.6.1_F","Conditionner les ouvrages (à plat ou en volume).",null,null,null,"éval 300"]
[null,null,null,null,null,"éval 301"]
[null,null,null,null,null,"éval 302"]
[null,null,null,null,null,"éval 303"]
[null,null,null,null,null,"éval 304"]
[null,null,null,null,null,"éval 305"]
["C_4.1.1_F","Appliquer une démarche d’analyse de situations à risques.",null,null,null,"éval 306"]
[null,null,null,null,null,"éval 307"]
[null,null,null,null,null,"éval 308"]
[null,null,null,null,null,"éval 309"]
[null,null,null,null,null,"éval 310"]
[null,null,null,null,null,"éval 311"]
["C_4.1.2_F","Identifier, analyser et hiérarchiser les risques.",null,null,null,"éval 312"]
[null,null,null,null,null,"éval 313"]
[null,null,null,null,null,"éval 314"]
[null,null,null,null,null,"éval 315"]
[null,null,null,null,null,"éval 316"]
[null,null,null,null,null,"éval 317"]
["C_4.1.3_F","Proposer les solutions de prévention.",null,null,null,"éval 318"]
[null,null,null,null,null,"éval 319"]
[null,null,null,null,null,"éval 320"]
[null,null,null,null,null,"éval 321"]
[null,null,null,null,null,"éval 322"]
[null,null,null,null,null,"éval 323"]
["C_4.1.4_F","Transmettre les informations.",null,null,null,"éval 324"]
[null,null,null,null,null,"éval 325"]
[null,null,null,null,null,"éval 326"]
[null,null,null,null,null,"éval 327"]
[null,null,null,null,null,"éval 328"]
[null,null,null,null,null,"éval 329"]
["C_4.1.5_F","Suivre les procédures :                      mise hors tension                mise hors pression                      neutralisation des énergies, potentielles",null,null,null,"éval 330"]
[null,null,null,null,null,"éval 331"]
[null,null,null,null,null,"éval 332"]
[null,null,null,null,null,"éval 333"]
[null,null,null,null,null,"éval 334"]
[null,null,null,null,null,"éval 335"]
["C_4.1.6_F","Consigner le matériel.",null,null,null,"éval 336"]
[null,null,null,null,null,"éval 337"]
[null,null,null,null,null,"éval 338"]
[null,null,null,null,null,"éval 339"]
[null,null,null,null,null,"éval 340"]
[null,null,null,null,null,"éval 341"]
["C_4.2.1_F","Suivre le planning de maintenance",null,null,null,"éval 342"]
[null,null,null,null,null,"éval 343"]
[null,null,null,null,null,"éval 344"]
[null,null,null,null,null,"éval 345"]
[null,null,null,null,null,"éval 346"]
[null,null,null,null,null,"éval 347"]
["C_4.2.2_F","Adapter les interventions en fonction des charges des matériels.",null,null,null,"éval 348"]
[null,null,null,null,null,"éval 349"]
[null,null,null,null,null,"éval 350"]
[null,null,null,null,null,"éval 351"]
[null,null,null,null,null,"éval 352"]
[null,null,null,null,null,"éval 353"]
["C_4.2.3_F","Appliquer les consignes de maintenance du constructeur.",null,null,null,"éval 354"]
[null,null,null,null,null,"éval 355"]
[null,null,null,null,null,"éval 356"]
[null,null,null,null,null,"éval 357"]
[null,null,null,null,null,"éval 358"]
[null,null,null,null,null,"éval 359"]
["C_4.3.1_F","Appliquer les consignes des fiches de poste.",null,null,null,"éval 360"]
[null,null,null,null,null,"éval 361"]
[null,null,null,null,null,"éval 362"]
[null,null,null,null,null,"éval 363"]
[null,null,null,null,null,"éval 364"]
[null,null,null,null,null,"éval 365"]
["C_4.3.2_F","Contrôler et vérifier les niveaux des fluides, des pressions.",null,null,null,"éval 366"]
[null,null,null,null,null,"éval 367"]
[null,null,null,null,null,"éval 368"]
[null,null,null,null,null,"éval 369"]
[null,null,null,null,null,"éval 370"]
[null,null,null,null,null,"éval 371"]
["C_4.3.3_F","Contrôler les organes de transmission (état, tension).",null,null,null,"éval 372"]
[null,null,null,null,null,"éval 373"]
[null,null,null,null,null,"éval 374"]
[null,null,null,null,null,"éval 375"]
[null,null,null,null,null,"éval 376"]
[null,null,null,null,null,"éval 377"]
["C_4.3.4_F","Mettre à jour le dossier historique de la machine.",null,null,null,"éval 378"]
[null,null,null,null,null,"éval 379"]
[null,null,null,null,null,"éval 380"]
[null,null,null,null,null,"éval 381"]
[null,null,null,null,null,"éval 382"]
[null,null,null,null,null,"éval 383"]
["C_4.3.5_F","Identifier une fonction défaillante.",null,null,null,"éval 384"]
[null,null,null,null,null,"éval 385"]
[null,null,null,null,null,"éval 386"]
[null,null,null,null,null,"éval 387"]
[null,null,null,null,null,"éval 388"]
[null,null,null,null,null,"éval 389"]
["C_4.3.6_F","Localiser les bruits anormaux, des vibrations…",null,null,null,"éval 390"]
[null,null,null,null,null,"éval 391"]
[null,null,null,null,null,"éval 392"]
[null,null,null,null,null,"éval 393"]
[null,null,null,null,null,"éval 394"]
[null,null,null,null,null,"éval 395"]
["C_4.3.7_F","Alerter et rendre compte.",null,null,null,"éval 396"]
[null,null,null,null,null,"éval 397"]
[null,null,null,null,null,"éval 398"]
[null,null,null,null,null,"éval 399"]
[null,null,null,null,null,"éval 400"]
[null,null,null,null,null,"éval 401"]
["C_4.3.8_F","Déclarer la machine non opérationnelle.",null,null,null,"éval 402"]
[null,null,null,null,null,"éval 403"]
[null,null,null,null,null,"éval 404"]
[null,null,null,null,null,"éval 405"]
[null,null,null,null,null,"éval 406"]
[null,null,null,null,null,"éval 407"]
["C_4.3.9_F","Proposer un pré diagnostic.",null,null,null,"éval 408"]
[null,null,null,null,null,"éval 409"]
[null,null,null,null,null,"éval 410"]
[null,null,null,null,null,"éval 411"]
[null,null,null,null,null,"éval 412"]
[null,null,null,null,null,"éval 413"]
["C_4.4.1_F","Nettoyer les outils de coupe.",null,null,null,"éval 414"]
[null,null,null,null,null,"éval 415"]
[null,null,null,null,null,"éval 416"]
[null,null,null,null,null,"éval 417"]
[null,null,null,null,null,"éval 418"]
[null,null,null,null,null,"éval 419"]
["C_4.4.2_F","Remplacer les arêtes tranchantes, des outils à plaquettes jetables.",null,null,null,"éval 420"]
[null,null,null,null,null,"éval 421"]
[null,null,null,null,null,"éval 422"]
[null,null,null,null,null,"éval 423"]
[null,null,null,null,null,"éval 424"]
["C4.4.3_F","Effectuer les mesures et le contrôles des jauges outils.",null,null,null,"éval 425"]
["C_4.4.3_F","Effectuer les mesures et le contrôles des jauges outils.",null,null,null,"éval 426"]
[null,null,null,null,null,"éval 427"]
[null,null,null,null,null,"éval 428"]
[null,null,null,null,null,"éval 429"]
[null,null,null,null,null,"éval 430"]
["C4.4.3_F",null,null,null,null,"éval 431"]
["C_4.4.4_F","Mettre à jour les fiches outils.",null,null,null,"éval 432"]
[null,null,null,null,null,"éval 433"]
[null,null,null,null,null,"éval 434"]
[null,null,null,null,null,"éval 435"]
[null,null,null,null,null,"éval 436"]
[null,null,null,null,null,"éval 437"]
["C_4.4.5_F","Assurer l’approvisionnement  des consommables (plaquettes).",null,null,null,"éval 438"]
[null,null,null,null,null,"éval 439"]
[null,null,null,null,null,"éval 440"]
[null,null,null,null,null,"éval 441"]
[null,null,null,null,null,"éval 442"]
[null,null,null,null,null,"éval 443"]
["C_5.1.1_F","Effectuer une recherche documentaire.",null,null,null,"éval 444"]
[null,null,null,null,null,"éval 445"]
[null,null,null,null,null,"éval 446"]
[null,null,null,null,null,"éval 447"]
[null,null,null,null,null,"éval 448"]
[null,null,null,null,null,"éval 449"]
["C_5.1.2_F","Émettre et réceptionner des courriers électroniques.",null,null,null,"éval 450"]
[null,null,null,null,null,"éval 451"]
[null,null,null,null,null,"éval 452"]
[null,null,null,null,null,"éval 453"]
[null,null,null,null,null,"éval 454"]
[null,null,null,null,null,"éval 455"]
["C_5.2.1_F","Donner, transmettre des consignes, des informations.",null,null,null,"éval 456"]
[null,null,null,null,null,"éval 457"]
[null,null,null,null,null,"éval 458"]
[null,null,null,null,null,"éval 459"]
[null,null,null,null,null,"éval 460"]
[null,null,null,null,null,"éval 461"]
["C_5.2.2_F","Prendre en compte des remarques, des avis, des propositions.",null,null,null,"éval 462"]
[null,null,null,null,null,"éval 463"]
[null,null,null,null,null,"éval 464"]
[null,null,null,null,null,"éval 465"]
[null,null,null,null,null,"éval 466"]
[null,null,null,null,null,"éval 467"]
["C_5.3.1_F","Formuler et transmettre des avis, des informations.",null,null,null,"éval 468"]
[null,null,null,null,null,"éval 469"]
[null,null,null,null,null,"éval 470"]
[null,null,null,null,null,"éval 471"]
[null,null,null,null,null,"éval 472"]
[null,null,null,null,null,"éval 473"]
["C_5.3.2_F","Émettre, rédiger des propositions d’optimisation, d’amélioration, de rationalisation.",null,null,null,"éval 474"]
[null,null,null,null,null,"éval 475"]
[null,null,null,null,null,"éval 476"]
[null,null,null,null,null,"éval 477"]
[null,null,null,null,null,"éval 478"]
[null,null,null,null,null,"éval 479"]